{"text_format":"1","workbook":"xlsx","n_sheets":6,"sheets":["Page1","Page 2","Groups","Data","Codes","Building Data"],"not_rendered":{"charts":0,"images":0,"macros":1,"external_links":0,"defined_names":9,"comments":0,"pivot_tables":0},"unopened":[],"bounds":{"document_bytes":16777216,"sheet_cells":100000,"rows_first":2000,"rows_last":500,"rows_between":2000,"halvings":0,"cell_chars":16384,"cell_head_chars":4096},"cells_cut":0,"cells_raw":0,"read":"whole","date_system":"1900"}

{"sheet":"Page1","index":0,"n_rows":68,"n_cols":54,"rows_kept":68,"cut":false,"hidden":false,"merged":[[36,1,36,12],[41,44,41,48],[37,44,37,48],[44,52,52,58],[67,28,67,48],[38,44,38,48],[45,35,45,48],[65,30,66,43],[65,44,66,48],[61,7,61,20],[64,7,64,18],[64,19,64,21],[62,30,63,43],[62,44,63,48],[64,30,64,48],[46,9,46,25],[39,44,39,48],[40,44,40,48],[42,42,42,48],[14,8,14,11],[10,9,10,11],[9,3,9,8],[14,22,14,32],[14,16,14,20],[14,3,14,7],[14,33,14,42],[26,26,26,36],[26,38,26,48],[34,7,34,9],[28,38,28,48],[34,44,34,48],[34,22,34,24],[35,22,35,24],[34,13,34,20],[35,12,35,20],[25,1,25,12],[25,13,25,48],[26,1,26,12],[0,41,0,48],[1,45,1,48],[2,41,2,44],[6,1,6,48],[3,9,3,40],[3,1,3,8],[8,3,8,8],[11,3,11,12],[8,9,8,11],[10,3,10,8],[9,9,9,11],[0,9,0,40],[2,45,2,48],[1,41,1,44],[2,9,2,40],[1,9,1,40],[5,1,5,8],[1,1,1,8],[7,3,7,5],[7,9,7,11],[7,13,7,17],[11,18,11,19],[11,20,11,24],[11,25,11,48],[2,1,2,8],[62,24,62,27],[63,24,63,27],[47,35,47,48],[49,1,49,48],[50,1,50,48],[48,9,48,48],[47,9,47,25],[37,1,37,8],[63,7,63,18],[60,1,60,48],[45,9,45,25],[11,13,11,17],[14,13,14,15],[15,1,15,45],[24,1,24,12],[30,1,30,12],[35,1,35,5],[46,35,46,48],[5,9,5,11],[5,12,5,14],[5,15,5,19],[5,20,5,44],[35,7,35,9],[8,61,8,66],[8,67,8,69],[8,71,8,106],[17,13,22,48],[7,18,7,48],[30,13,31,48],[24,13,24,48],[31,1,31,12],[8,13,8,48],[9,13,9,48],[10,13,10,48],[26,13,26,21],[27,1,27,10],[28,13,28,23],[28,28,28,36],[29,13,29,23],[27,13,27,48],[12,20,12,48],[23,13,23,48],[29,28,29,36],[29,24,29,26],[29,38,29,48],[16,1,16,12],[23,1,23,12]]}
[null,null,null,null,null,null,null,null,null,"UNIVERSITY of VIRGINIA",null,null,null,null,null,null,null,null,null,null,null,null,null,null,null,null,null,null,null,null,null,null,null,null,null,null,null,null,null,null,null,{"$f":"IF(J2=\"APPLICATION FOR BUILDING PERMIT\",\"HECO-17a\",\"HECO-17\")","v":"HECO-17"}]
[null,null,null,null,null,null,null,null,null,"BUILDING PERMIT",null,null,null,null,null,null,null,null,null,null,null,null,null,null,null,null,null,null,null,null,null,null,null,null,null,null,null,null,null,null,null,"Issued:"]
[null,null,null,null,null,null,null,null,null,"FOR",null,null,null,null,null,null,null,null,null,null,null,null,null,null,null,null,null,null,null,null,null,null,null,null,null,null,null,null,null,null,null,"Expires:"]
[null,"(Revised 8/16/23)",null,null,null,null,null,null,null,"CONSTRUCTION ON STATE PROPERTY",null,null,null,null,null,null,null,null,null,null,null,null,null,null,null,null,null,null,null,null,null,null,null,null,null,null,null,null,null,null,null,null,null,null,null,null,null,null,"Page 1 of 2"]
[]
[null,"PROJECT:"]
[]
[null,null,null,"Bldg #",null,null,null,null,null,null,null,null,null,"Bldg Name:",null,null,null,null,{"$f":"VLOOKUP(J8,'Building Data'!A2:B764,2)","v":{"$error":"#N/A"}}]
[null,null,null,"Cap Project #:",null,null,null,null,null,null,null,null,null,"*** Enter the project location in the bldg, and general description of work "]
[null,null,null,"Sub-Project:"]
[null,null,null,"Agency:",null,null,null,null,null,null,null,null,null,{"$f":"IF(J11=207,\"University of Virginia\",IF(J11=209,\"University of Virginia Medical Center\",IF(J11=246,\"University of Virginia's College at Wise\",IF(J11=948,\"Southwest Virginia Higher Education Center\",\"*****   Please enter an Agency Code to the left  *****\"))))","v":"*****   Please enter an Agency Code to the left  *****"}]
[null,null,null,null,null,null,null,null,null,null,null,null,null,"FIPS Code:",null,null,null,null,{"$f":"VLOOKUP(J8,'Building Data'!A2:C764,3)","v":{"$error":"#N/A"}},null,"Location:",null,null,null,null,{"$f":"VLOOKUP(S12,'Building Data'!L2:N11,2)","v":{"$error":"#N/A"}}]
[null,null,null,null,null,null,null,null,null,null,null,null,null,"Street Address:",null,null,null,null,null,null,{"$f":"VLOOKUP(J8,'Building Data'!A2:D764,4)","v":{"$error":"#N/A"}}]
[]
[null,null,null,"PJ #:",null,null,null,null,null,null,null,null,null,"WO #:",null,null,null,null,null,null,null,null,"Indicate type of Project:"]
[]
[null,"BUILDING:"]
[null,"Work Permitted:",null,null,null,null,null,null,null,null,null,null,null,"*** Enter details of the scope (new construction, full renovation, major disciplines, etc)"]
[]
[]
[]
[]
[]
[null,"Purpose/Occupancy:",null,null,null,null,null,null,null,null,null,null,null,"*** Enter the purpose or need for the project, type of space (lab, office, etc)",null,null,null,null,null,null,null,null,null,null,null,null,null,null,null,null,null,null,null,null,null,null,null,null,null,null,null,null,null,null,null,null,null,null,null,null,null,null,null,"Fields are color coded:"]
[null,"Occupant Load:",null,null,null,null,null,null,null,null,null,null,null,"*** Enter the number of occupants in the area of construction",null,null,null,null,null,null,null,null,null,null,null,null,null,null,null,null,null,null,null,null,null,null,null,null,null,null,null,null,null,null,null,null,null,null,null,null,null,null,null,"User to enter"]
[null,"Occupancy Remarks:",null,null,null,null,null,null,null,null,null,null,null,"*** Enter the use group or type of use (offices being converted to labs, etc) if there is a change",null,null,null,null,null,null,null,null,null,null,null,null,null,null,null,null,null,null,null,null,null,null,null,null,null,null,null,null,null,null,null,null,null,null,null,null,null,null,null,"User to select from drop down menu"]
[null,"Building Code Edition:",null,null,null,null,null,null,null,null,null,null,null,"VUSBC 2018",null,null,null,null,null,null,null,null,null,null,null,null,"Accessibility Standards:",null,null,null,null,null,null,null,null,null,null,null,"2010 ADA Standards",null,null,null,null,null,null,null,null,null,null,null,null,null,null,"Auto filled or office use only"]
[null,"Type of Construction:",null,null,null,null,null,null,null,null,null,null,null,{"$f":"VLOOKUP(J8,'Building Data'!A2:F764,6)","v":{"$error":"#N/A"}}]
[null,"Use Group(s):",null,null,null,null,null,null,null,null,null,null,null,null,null,null,null,null,null,null,null,null,null,null,null,null,null,null,"Gross Area (gsf):"]
[null,"Building Height (feet):",null,null,null,null,null,null,null,null,null,null,null,null,null,null,null,null,null,null,null,null,null,null,null,null,null,null,"# of Stories:",null,null,null,null,null,null,null,null,null,{"$f":"VLOOKUP(J8,'Building Data'!A2:I764,9)","v":{"$error":"#N/A"}}]
[null,"Code Modifications Issued:"]
[null,"( Sections modified )"]
[]
[null,"Additional Submittals Required                                         "]
[null,"Fire Alarm",null,null,null,null,null,null,null,null,null,null,null,"Arc Flash Study",null,null,null,null,null,null,null,null,null,null,null,null,null,null,null,null,"Special Inspections Required ?"]
[null,"Sprinklers",null,null,null,null,null,null,null,null,null,null,"Delegated Structural"]
[null,null,null,null,null,null,null,null,null,null,null,null,null,null,null,null,null,null,null,null,null,null,null,null,null,null,null,null,null,null,"Key Dates"]
[null,"Fire Suppression",null,null,null,null,null,null,null,null,null,null,"Fire Alarm System",null,null,null,null,null,null,null,null,null,null,null,null,null,null,null,null,null,"E&S Stormwater Approval"]
[null,null,null,"Full",null,null,null,null,null,null,null,null,null,null,"Automatic",null,null,null,null,null,null,null,null,null,null,null,null,null,null,null,"AARB Approval Date:"]
[null,null,null,"Partial",null,null,null,null,null,null,null,null,null,null,"Manual",null,null,null,null,null,null,null,null,null,null,null,null,null,null,null,"Date of Plans & Specifications:"]
[null,null,null,"None",null,null,null,null,null,null,null,null,null,null,"None",null,null,null,null,null,null,null,null,null,null,null,null,null,null,null,"Est'd Construction Start Date:"]
[null,null,null,null,null,null,null,null,null,null,null,null,null,null,"Not Required",null,null,null,null,null,null,null,null,null,null,null,null,null,null,null,"Est'd Construction Completion:"]
[null,null,null,null,null,null,null,null,null,null,null,null,null,null,null,null,null,null,null,null,null,null,null,null,null,null,null,null,null,null,"Est'd Construction Value:"]
[]
[]
[null,"Arch./Engineer:",null,null,null,null,null,null,null,null,null,null,null,null,null,null,null,null,null,null,null,null,null,null,null,null,null,"Agency Contact:"]
[null,"Contractor:",null,null,null,null,null,null,null,null,null,null,null,null,null,null,null,null,null,null,null,null,null,null,null,null,null,"Agency Phone:"]
[null,"License No.:",null,null,null,null,null,null,null,null,null,null,null,null,null,null,null,null,null,null,null,null,null,null,null,null,null,"Agency E-mail:"]
[]
[null,"BUILDING OFFICIAL ACTION"]
[]
[]
[]
[]
[]
[]
[]
[]
[]
[]
[]
[null,"Original to:",null,null,null,null,null,"FP&C Admin (Kim Breeden)",null,null,null,null,null,null,null,null,null,null,null,null,null,null,null,null,null,null,null,"Approved:"]
[null,"Copies to:",null,null,null,null,null,"Gerald Drumheller, University Fire Marshal"]
[null,null,null,null,null,null,null,"Project Manager"]
[null,null,null,null,null,null,null,"Regional Fire Marshal Office -",null,null,null,null,null,null,null,null,null,null,null,{"$f":"VLOOKUP(S12,'Building Data'!L2:N11,3)","v":{"$error":"#N/A"}},null,null,null,null,null,null,null,null,null,null,"  University Building Official                       Date"]
[null,null,null,null,null,null,null,null,null,null,null,null,null,null,null,null,null,null,null,null,null,null,null,"As Required:"]
[]
[null,null,null,null,null,null,null,null,null,null,null,null,null,null,null,null,null,null,null,null,null,null,null,null,null,null,null,null,"   Director Of Health System Physical Plant       Date"]

{"sheet":"Page 2","index":1,"n_rows":68,"n_cols":29,"rows_kept":68,"cut":false,"hidden":false,"merged":[[37,2,40,10],[1,11,1,12],[2,11,2,12],[10,7,10,8],[0,4,0,8],[1,4,1,8],[2,5,2,9],[5,1,5,7],[6,1,6,7]]}
[]
[null,null,null,null,{"$f":"Page1!J1","v":"UNIVERSITY of VIRGINIA"},null,null,null,null,null,null,{"$f":"Page1!AP1","v":"HECO-17"}]
[{"$f":"Page1!D15","v":"PJ #:"},null,null,{"$f":"Page1!I15","v":0},null,null,null,null,null,null,null,"Page 2 of 2"]
[]
[]
[null,"Date of University Building Official Final Inspection"]
[null,"Date of Authorized Use & Occupancy"]
[null,"All work has been completed in accordance with the contract documents."]
[]
[]
[]
[null,null,null,"Project Manager",null,null,null,"Date"]
[]
[]
["Additional Building Official Comments:"]
[]
[]
[]
[]
[]
[]
[]
[]
[]
[]
[]
[]
[]
[]
[]
[]
[]
[]
[]
[]
[null,"REQUIRED INSPECTIONS",null,null,null,"(To be completed by OUBO)"]
[]
[null,null,"Inspection requests should be made at least 2 working days in advance.  Some inspections may be required at multiple stages of construction.  PM/CAM is responsible for making inspection requests at the appropriate stage of construction.  Refer to OUBO website for contact info, inspection checklists, and additional information."]
[]
[]
[]
[]
[null,null,null,"Fire rated assemblies/penetrations",null,null,null,"Structural (Footings/Foundation/Framing)"]
[null,null,null,"Above Ceiling",null,null,null,"ADA"]
[null,null,null,"Sprinkler",null,null,null,"Fire Alarm"]
[null,null,"X","TCUO/Final",null,null,null,"Other: ___________________________________"]
[]
[]
[null,null,"Mechanical/Plumbing",null,null,null,"Electrical"]
[null,null,null,"Rough-In",null,null,null,"Rough-In"]
[null,null,null,"Above Ceiling",null,null,null,"Above Ceiling"]
[null,null,null,"Final",null,null,null,"Final"]
[]
[]
[]
[]
[]
[]
[]
[]
[]
[]
[]
[]
[]
[]
[]
[null,null,null,null,null,null,null,null,null,null,null,null,null,null,null,null,null,null,null,null,null,null,null,null,null,null,null,null,"   Director Of Health System Physical Plant       Date"]

{"sheet":"Groups","index":2,"n_rows":88,"n_cols":5,"rows_kept":88,"cut":false,"hidden":false,"merged":[]}
[]
[null,"\"GROUP\" REFERENCE LIST"]
[]
[null,"  Enter all applicable Groups ( the codes only ) in the Use Group field on \"Page 1\"."]
[]
[null,"  Refer to the Building Code for a more complete description and examples of these classifications."]
[]
[null,null,"Code","Description"]
[null,null,"A-1","Assembly uses, usually with fixed seating, intended for the production and viewing of"]
[null,null,null,null,"performing arts or motion pictures."]
[]
[null,null,"A-2","Assembly uses intended for food and/or drink consumption."]
[]
[null,null,"A-3","Assembly uses intended for worship, recreation or amusement and other assembly uses"]
[null,null,null,null,"not classified elsewhere in Group A."]
[]
[null,null,"A-4","Assembly uses intended for viewing of indoor sporting events and activities with"]
[null,null,null,null,"spectator seating."]
[]
[null,null,"A-5","Assembly uses intended for participation in or viewing outdoor activities."]
[]
[null,null,"B","Business Group B occupancy includes, among others, the use of a building or structure"]
[null,null,null,null,"or a portion thereof, for office, professional or service-type transactions,"]
[null,null,null,null,"including storage of records and accounts."]
[]
[null,null,"E","Educational Group E occupancy includes, among others, the use of a building or structure,"]
[null,null,null,null,"or a portion thereof, by six or more persons at any one time for educational"]
[null,null,null,null,"purposes through the 12th grade."]
[]
[null,null,"F-1","Factory industrial, moderate hazard."]
[]
[null,null,"F-2","Factory industrial, low hazard."]
[]
[null,null,"H-1","High hazard. Buildings and structures containing materials that pose a detonation hazard."]
[]
[null,null,"H-2","High hazard. Building and structures containing materials that present a deflagration "]
[null,null,null,null,"hazard or hazard from accelerated burning."]
[]
[null,null,"H-3","High hazard. Buildings and structures containing materials that readily support combustion"]
[null,null,null,null,"or present a physical hazard."]
[]
[null,null,"H-4","High hazard. Buildings and structures that contain materials that are health hazards."]
[]
[null,null,"H-5","High hazard. Semiconductor fabrication facilities and comparable research and development"]
[null,null,null,null,"areas in which hazardous production materials (HPM) are used and the aggregate"]
[null,null,null,null,"quantity of materials is in excess of those listed the tables referenced in the Code."]
[]
[null,null,"I-1","Institutional. This occupancy shall include a buildin or portion thereof housing more than 16"]
[null,null,null,null,"persons, on a 24-hour basis, who because of age, mental disability or other reasons,"]
[null,null,null,null,"live in a supervised residential environment that provides personal care services.  The"]
[null,null,null,null,"occupants are capable of responding to an emergency situation without physical"]
[null,null,null,null,"assistance from the staff."]
[]
[null,null,"I-2","Institutional. This occupancy shall include buildings and structures used for medical, surgical,"]
[null,null,null,null,"psychiatric, nursing or custodial care on a 24-hour basis of more than 5 persons who"]
[null,null,null,null,"are not capable of self-preservation."]
[]
[null,null,"I-3","Institutional. This occupancy shall include buildings and structures that are inhabited by more than"]
[null,null,null,null,"5 persons who are under restraint or security."]
[]
[null,null,"I-4","Institutional. This occupancy shall include buildings and structures occupied by persons of any age"]
[null,null,null,null,"who receive custodial care for less than 24 hours by individuals other than parents or"]
[null,null,null,null,"guardians, relatives by blood, marriage, or adoption, and in aplace other than the home of"]
[null,null,null,null,"the person cared for."]
[]
[null,null,"M","Mercantile.  This occupancy includes, among others, buildings and structures or a portion thereof,"]
[null,null,null,null,"for the display and sale of merchandise, and involves stocks of goods, wares or merchandise"]
[null,null,null,null,"incidental to such purposes and accessible to the public."]
[]
[null,null,"R-1","Residential, hotels, motels, boarding houses (transient)."]
[]
[null,null,"R-2","Residential, multiple family (e.g., apartment houses, non-transient boarding houses, convents,"]
[null,null,null,null,"dormitories, fraternities, sororities, monasteries."]
[]
[null,null,"R-3","Residential, one- and two-family dwelling units, adult and childcare facilities for five or fewer"]
[null,null,null,null,"persons of any age for less than 24 hours."]
[]
[null,null,"R-4","Buildings arranged for occupancy as Residential Care/Assisted Living Facilities including more"]
[null,null,null,null,"than 5 but not more than 16 occupants, excluding staff."]
[]
[null,null,"R-5","Detached one and two-family dwellings and multiple single-family dwellings (townhouses) not more"]
[null,null,null,null,"than three stories high with separate means of egress and their accessory structures."]
[]
[null,null,"S-1","Storage, moderate hazard.  Buildings occupied for storage uses which are not classified as Group S-2."]
[]
[null,null,"S-2","Storage, low hazard.  Buildings used for the storage of noncombustible materials."]
[]
[null,null,"U","Utility and Miscellaneous."]

{"sheet":"Data","index":3,"n_rows":59,"n_cols":2,"rows_kept":59,"cut":false,"hidden":true,"merged":[]}
["BUILDING TYPE","STANDARD BUILDING"]
["FORM TYPE","PERMIT"]
[]
["PROJECT"]
["Agency Code",{"$f":"TEXT(Page1!J9,\"000\")","v":"000"}]
["Project Num",{"$f":"TEXT(Page1!J10,\"00000\")","v":"00000"}]
["Subproject Num",{"$f":"TEXT(Page1!J11,\"000\")","v":"000"}]
["Subproject Title",{"$f":"UPPER(Page1!N11)","v":"*****   PLEASE ENTER AN AGENCY CODE TO THE LEFT  *****"}]
["Architect/Engineer",{"$f":"UPPER(Page1!J46)","v":""}]
["Contractor",{"$f":"UPPER(Page1!J47)","v":""}]
["Contractor License Number",{"$f":"UPPER(Page1!J48)","v":""}]
[]
["BUILDING INFO"]
["Building Description",{"$f":"UPPER(Page1!J6)","v":""}]
["Building FIPS",{"$f":"LEFT(Page1!N12,3)","v":"FIP"}]
["Purpose-Occupancy",{"$f":"UPPER(Page1!N24)","v":"*** ENTER THE PURPOSE OR NEED FOR THE PROJECT, TYPE OF SPACE (LAB, OFFICE, ETC)"}]
["Occupancy Load",{"$f":"UPPER(Page1!N25)","v":"*** ENTER THE NUMBER OF OCCUPANTS IN THE AREA OF CONSTRUCTION"}]
["Occupancy Remarks",{"$f":"UPPER(Page1!N26)","v":"*** ENTER THE USE GROUP OR TYPE OF USE (OFFICES BEING CONVERTED TO LABS, ETC) IF THERE IS A CHANGE"}]
["Code Edition",{"$f":"UPPER(Page1!N27)","v":"VUSBC 2018"}]
["Use Group",{"$f":"UPPER(Page1!N28)","v":{"$error":"#N/A"}}]
["Construction Type",{"$f":"UPPER(Page1!#REF!)","v":{"$error":"#REF!"}}]
["Height",{"$f":"UPPER(Page1!N30)","v":""}]
["Number of Stories",{"$f":"UPPER(Page1!#REF!)","v":{"$error":"#REF!"}}]
["Gross Area",{"$f":"UPPER(Page1!#REF!)","v":{"$error":"#REF!"}}]
["Code Modifications",{"$f":"UPPER(Page1!N31)","v":""}]
["Floor Live Load",{"$f":"UPPER(Page1!N34)","v":""}]
["Roof Live Load",{"$f":"UPPER(Page1!N35)","v":"ARC FLASH STUDY"}]
["Soil Bearing Capacity",{"$f":"UPPER(Page1!#REF!)","v":{"$error":"#REF!"}}]
["Wind Speed",{"$f":"UPPER(Page1!M36)","v":"DELEGATED STRUCTURAL"}]
["Wind Exposure Category",{"$f":"UPPER(Page1!N37)","v":""}]
["Bldg Classification Category",{"$f":"UPPER(Page1!#REF!)","v":{"$error":"#REF!"}}]
["Seismic Exposure Group"]
["Seismic Performance Cat"]
["Seismic Design Category",{"$f":"UPPER(Page1!#REF!)","v":{"$error":"#REF!"}}]
["Fire Suppression - Wet",{"$f":"IF(Page1!B39=\"\",\"N\",\"X\")","v":"N"}]
["Fire Suppression - Dry",{"$f":"IF(Page1!B40=\"\",\"N\",\"X\")","v":"N"}]
["Fire Suppression - Chemical",{"$f":"IF(Page1!B41=\"\",\"N\",\"X\")","v":"N"}]
["Fire Suppression - Other",{"$f":"IF(Page1!B42=\"\",\"N\",\"X\")","v":"N"}]
["Fire Suppression - None",{"$f":"IF(Page1!B43=\"\",\"N\",\"X\")","v":"N"}]
["Fire Suppression - Not Reqd",{"$f":"IF(Page1!B44=\"\",\"N\",\"X\")","v":"N"}]
["Elevators - New",{"$f":"IF(Page1!#REF!=\"\",\"N\",\"X\")","v":{"$error":"#REF!"}}]
["Elevators - Existing",{"$f":"IF(Page1!#REF!=\"\",\"N\",\"X\")","v":{"$error":"#REF!"}}]
["Elevators - Number",{"$f":"Page1!L41","v":0}]
["Fire Alarm - Auto",{"$f":"IF(Page1!M39=\"\",\"N\",\"X\")","v":"N"}]
["Fire Alarm - Manual",{"$f":"IF(Page1!M40=\"\",\"N\",\"X\")","v":"N"}]
["Fire Alarm - None",{"$f":"IF(Page1!M41=\"\",\"N\",\"X\")","v":"N"}]
["Fire Alarm - Not Reqd",{"$f":"IF(Page1!M42=\"\",\"N\",\"X\")","v":"N"}]
["AARB Approval Date",{"$f":"IF(Page1!AS39=0,\"\",Page1!AS39)","v":""}]
["Plans & Specs Date",{"$f":"IF(Page1!AS40=0,\"\",Page1!AS40)","v":""}]
["Last Addendum Date",{"$f":"IF(Page1!#REF!=0,\"\",Page1!#REF!)","v":{"$error":"#REF!"}}]
["Est'd Constr Cmpltn Date",{"$f":"IF(Page1!AS42=0,\"\",Page1!AS42)","v":""}]
["Construction Cost",{"$f":"UPPER(Page1!AP43)","v":""}]
["Addenda Issued",{"$f":"UPPER(Page1!J49)","v":""}]
["PERMIT INFO"]
["Issue Date",{"$f":"IF(Page1!AT3=0,\"\",Page1!AT3)","v":""}]
["Expiration Date",{"$f":"IF(Page1!AW4=0,\"\",Page1!AW4)","v":"Page 1 of 2"}]
[]
["OTHER FIELDS"]
["Site Class",{"$f":"UPPER(Page1!#REF!)","v":{"$error":"#REF!"}}]

{"sheet":"Codes","index":4,"n_rows":12,"n_cols":2,"rows_kept":12,"cut":false,"hidden":true,"merged":[]}
["FIPS","CONSTRUCTION_TYPE"]
["003 - Albemarle Co."]
["540 - Charlottesville, City Of","IA"]
["043 - Clarke Co.","IB"]
["131 - Northampton Co.","IIA"]
["195 - Wise Co.","IIB"]
["999 - Unknown Or Multiple Locations","IIIA"]
[null,"IIIB"]
[null,"IV"]
[null,"VA"]
[null,"VB"]
[null,"N/A"]

{"sheet":"Building Data","index":5,"n_rows":791,"n_cols":14,"rows_kept":791,"cut":false,"hidden":false,"merged":[]}
["FACILITYNUMBER","FACILITYNAME","FIPS","Street Address","Column Deleted","Constr Type Existing","Yr Blt-Applic Code-Constr Type","Sprinkler (% coverage)","# Stories","State Fire Marshal's Files in GES","Date purchased by UVA"]
[1,"Rotunda",3,"1826 University Ave ",null,"Maintain Type IIIB per VUSBC 2009","1828/post 1895/1973, Renov 2016-VUSBC 2009-Type IIIB","100% (w/ 2014 renovation)","4 or 5?","X",null,3,"Albemarle","Central"]
[2,"Hotel A",3,"161 McCormick Rd ",null,"Maintain Ordinary per VFSR","1825-VFSR-Ordinary",0,null,"X",null,15,"Augusta","Central"]
[6,"Hotel C/ Jefferson Hall",3,"185 McCormick Rd ",null,"Maintain Ordinary per VFSR",null,0,null,"X",null,31,"Campbell","Central"]
[10,"Hotel E/ Colonnade Hotel",3,"209 McCormick Rd ",null,"Maintain Ordinary per VFSR","1826/1846-VFSR-Ordinary",0,2,"X",null,43,"Clarke","Eastern"]
[11,"Hotel E Annex/ Colonnade Hotel",3,"211 McCormick Rd ",null,"Maintain Ordinary per VFSR","1826/1846-VFSR-Ordinary",0,null,null,null,71,"Giles","Western"]
[16,"Poe Alley #1",3,"179 McCormick Rd ",null,"(TBD - see OUBO)",null,0,null,null,null,131,"Northhampton","Eastern"]
[22,"Pavilion VII/Colonnade Club",3,"7 West Pav ",null,"Maintain Ordinary per VFSR","1821 Orig, 1913 Rear Addit-VFSR-Ordinary",1,null,"X",null,137,"Orange","Eastern"]
[44,"Hotel B/ Washington Hall",3,"12 Rotunda Dr ",null,"Maintain Ordinary per VFSR","1820 Orig,-VFSR-Ordinary",1,1,"X",null,195,"Wise","Western"]
[49,"Hospital Drive Traffic Pavilion",3,"50 Hospital Dr ",null,"(TBD - see OUBO)",null,null,null,null,null,540,"Charlottesville","Central"]
[52,"Hotel F/ Levering Hall",3,"50 Rotunda Dr ",null,"(TBD - see OUBO)",null,0,null,"X",null,610,"Falls Church","Eastern"]
[54,"Randall Hall",3,"130 Hospital Dr ",null,"Maintain Ordinary per VFSR","1900-VFSR-Ordinary",0,3]
[55,"Garrett Hall",3,"235 McCormick Rd ",null,"Maintain Type IIIB per VUSBC 2006","1908, Annex 1968, Renov 2011 - VUSBC 2006 - Type IIIB",1]
[56,"Varsity Hall",3,"136 Hospital Dr ",null,"Maintain Type IIIB per VUSBC 2000","Orig 1858 - VFSR-?, Renov 2007-VUSBC 2000-Type IIIB",1]
[57,"Robertson Hall",3,"125 Ruppel Dr ",null,"Maintain Type IB per VUSBC 2000","2008-VUSBC 2000-Type IB",1,null,"X"]
[58,"Rouss Hall",3,"40 South Lawn ",null,"(TBD - see OUBO)",null,1]
[59,"Old Cabell Hall",3,"30 South Lawn ",null,"Maintain Ordinary per VFSR","1896-VFSR-Ordinary","50% (audit, main lobby, attic, 2nd flr offices, language lab)",null,"X"]
[60,"New Cabell Hall",3,"1605 Jefferson Park Ave ",null,"Maintain Type IIA per VUSBC 2009","VFSR-Semi-Fireproof, 2010-VUSBC 2009-Type IIA",1,null,"X"]
[61,"Cocke Hall",3,"20 South Lawn ",null,"Maintain Type IIIB per VUSBC 2000","Orig-VFSR-?, Renov 2004-VUSBC 2000-Type IIIB",1]
[62,"Amphitheater",3,"93 Amphitheater Way ",null,"Maintain Ordinary per VFSR","1920-VFSR-Ordinary",0]
[63,"University Chapel",3,"145 McCormick Rd ",null,"Maintain Ordinary per VFSR","1953-VFSR-Ordinary",0]
[64,"Brooks Hall",3,"1702 University Ave ",null,"Maintain Ordinary per VFSR","1877-VFSR-Ordinary",0,3]
[65,"Minor Hall",3,"102 Amphitheater Way ",null,"Maintain Type IIIB per VUSBC 1987","1909-VFSR-Ordinary, Renov 1995-VUSBC 1987-Type IIIB",1,2,"X"]
[66,"Maury Hall",3,"128 Amphitheater Way ",null,"Maintain Noncombustible per VFSR","1942-VFSR-Noncombustible",1]
[67,"Halsey Hall",3,"148 Amphitheater Way ",null,"Maintain Ordinary per VFSR","1946-VFSR-Ordinary","1% (1 head in basement)"]
[68,"Clark Hall",3,"291 McCormick Rd ",null,"(orig constr or addit? - see OUBO)","1932-VFSR-Semi-Fireproof, 1949 addit VFSR, 2000 addit-VUSBC 1996 Type IIA (stairs in '49 addit rebuilt)",1,null,"X"]
[69,"Kerchof Hall",3,"141 Cabell Dr ",null,"Maintain Noncombustible per VFSR","1955-VFSR-Noncombustible",0,3,"X"]
[70,"South Lawn Commons",540,"1540 Jefferson Park Ave ",null,"(TBD - see OUBO)"]
[71,"South Lawn Nau Hall",540,"1540 Jefferson Park Ave ",null,"Maintain Type IIB per VUSBC 2003","2010-2003 VUSBC-Type IIB",1,4]
[72,"South Lawn Gibson Hall",540,"1540 Jefferson Park Ave ",null,"Maintain Type IIB per VUSBC 2003","2010-2003 VUSBC-Type IIB",1,4]
[82,"Alderman Library",3,"160 McCormick Rd ",null,"Maintain Semi-Fireproof per VFSR","1937-VFSR-Semi-Fireproof, 1967",0,null,"X"]
[83,"Monroe Hall",3,"248 McCormick Rd ",null,"(TBD - see OUBO)","1929-VFSR-Semi-Fireproof, Addit 1988-VUSBC 1981-Type IIB","15% (1988 addition basement only)"]
[89,"Dawson's Row #1",3,"1 Dawson's Row ",null,"Maintain Frame per VFSR","18__-VFSR-Frame",0]
[90,"Dawson's Row #2",3,"2 Dawson's Row ",null,"Maintain Frame per VFSR","1890-VFSR-Frame",0]
[91,"Dawson's Row #3",3,"3 Dawson's Row ",null,"Maintain Frame per VFSR","18__-VFSR-Frame",0]
[92,"Dawson's Row #4",3,"4 Dawson's Row ",null,"Maintain Frame per VFSR","1859-VFSR-Frame",0]
[93,"Monroe Hill Elevator",3,"65 Monroe Hill ",null,"(TBD - see OUBO)",1994,0]
[94,"Bryan Hall",3,"201 Cabell Dr ",null,"Maintain Type IIC per VUSBC 1987","1996-VUSBC 1987-Type IIC Noncombustible Unprotected",1]
[105,"McLeod Hall",540,"202 Jeannette Lancaster Way SW",null,"Maintain Semi-Fireproof per VFSR","1972-VFSR-Semi-fireproof","100% (w current renov)",null,"X"]
[106,"Claude Moore Nursing Education Building",540,"225 Jeannette Lancaster Way ",null,"(TBD - see OUBO)",null,1]
[121,"Harrison Institute and Small Special Collections Library",3,"170 McCormick Rd ",null,"(above or below grade? - see OUBO)","2002 - 1996 VUSBC Type IB Below Grade, Type IIB Above Grade",1]
[122,"Newcomb Hall",3,"180 McCormick Rd ",null,"Maintain Type IA per VUSBC 2006","Renov-VUSBC 2006-Type IA",1,6,"X"]
[123,"Peabody Hall",3,"190 McCormick Rd ",null,"(TBD - see OUBO)","1915-VFSR-Ordinary; Addit 1980-VUSBC 1978-?",1]
[125,"Bookstore/Central Grounds Parking",3,"400 Emmet St S",null,"(Bookstore or Garage? - see OUBO)","1995-VUSBC 1990-Bkstr Type IIA/Garage Type IIC",0.9,null,"Bookstore and top level of garage are sprinklered. "]
[126,"Clemons Library",3,"164 McCormick Rd ",null,"Maintain Type IB per VUSBC 1978","1979-VUSBC 1978-Type IB (due to sprinkler waiver)","0% (2nd Flr & standpipe only)",4,"X"]
[131,"Elson Student Health Center",540,"400 Brandon Ave ",null,"Maintain Type IIIB per VUSBC 1996","2000 renov/addit-VUSBC 1996-Type IIIB",1,2]
[136,"Wilson Hall",3,"115 Ruppel Dr ",null,"Maintain Type IB per VUSBC 2012","1969 VFSR Semi-Fireproof, Renov 2015-VUSBC 2012-Type IB",1]
[201,"Ohill Dining Facility",3,"525 McCormick Rd ",null,"(TBD - see OUBO)"]
[202,"Olsson Hall",3,"151 Engineer's Way ",null,"Maintain Type IIB per VUSBC 1981","Orig 1958-VFSR-Noncombustible; 1986-VUSBC 1981-Type IIB",1]
[203,"Albert H Small Building",3,"156 Engineer's Way ",null,"Maintain Type IIIC per VUSBC 1981","1952-VFSR-Noncombustible; Renov 1986-VUSBC 1981-Type IIIC Unprotected",1]
[204,"Thornton Hall",3,"351 McCormick Rd ",null,"(which wing? - see OUBO)","1934/7 (A,B,C Wings)-VFSR-Ordinary / 1949 (E Wing)-VFSR Non-combustible, 1964 (D,E Wings)-VFSR-Non-combustible","5% (suppression in 2 basements, 1 computer rm)",3,"X"]
[205,"Zehmer Storage Building",3,"106 Midmont Ln ",null,"(TBD - see OUBO)",null,0]
[206,"Zehmer Hall Communication Shed",3,"108 Midmont Ln ",null,"(TBD - see OUBO)",null,0]
[207,"Zehmer Hall",3,"104 Midmont Ln ",null,"Maintain Noncombustible per VFSR","1956-VFSR-Noncombustible",0,2]
[208,"Zehmer Annex",3,"106 Midmont Ln ",null,"(TBD - see OUBO)",null,0]
[210,"Gilmer Hall",3,"485 McCormick Rd ",null,"(orig constr or addit? - see OUBO)","Orig 1963 VFSR Semi-fireproof",0.3,5,"X"]
[null,"Gilmer Hall Addition",null,null,null,"Maintain IIC per VUSBC 1981","Addit VUSBC 1981 Type IIC Noncombustible unprotected","100% (separated from Gilmer Hall)",null,"X"]
[214,"Rice Hall",3,"85 Engineers Way ",null,"Maintain Type IIA per VUSBC 2006","2012-VUSBC 2006-Type IIA",1,6]
[215,"Physical and Life Sciences Building",3,"90 Geldard Driv ",null,"Maintain Type IIB per VUSBC 2006 (flrs, columns 2 HR)","2009-VUSBC 2006-Type IIB (flrs, columns 2 HR)",1,6]
[217,"Contemplative Commons",3,null,null,null,null,1]
[218,"Dell Building #2",3,"21 Bonnycastle Dr ",null,"Maintain Type IIC per VUSBC 1996 w/ 2000 Amendments",null,1]
[219,"Dell Building #1",3,"31 Bonnycastle Dr ",null,"Maintain Type IIC per VUSBC 1996 w/ 2000 Amendments",null,1]
[221,"Physics/J Beams Lab (Includes 1980 addition)",3,"382 McCormick Rd ",null,"Maintain Semi-Fireproof per VFSR","1953-VFSR-Semi-Fireproof/Addition 1980-VUSBC 1978-Type IIC Noncombustible Unprotected","55% (suppression in attic)",null,"X"]
[null,"Physics Addition",null,null,null,null,"Addition 1993-VUSBC 1990-Type IIB",1]
[222,"Chemical Engineering Research",3,"385 McCormick Rd ",null,"Maintain Type IIB per VUSBC 1987","1992-VUSBC 1987-Type IIB",1]
[223,"Lambeth House",540,"1914 Thomson Rd ",null,"(TBD - see OUBO)",null,0]
[224,"Zehmer Uplink Shelter",3,"104 Midmont Ln ",null,"(TBD - see OUBO)",null,0]
[227,"Fac Mgmt Maintenance Shop",3,"1561 Pratt Dr",null,"Maintain Type VB per VUSBC 2012","1988-VUSBC 1984-Type IIIB, Renov 2015-VUSBC 2012-Type VB (due to fire separ dist)",1]
[228,"Leake Building",3,"1450 Leake Dr",null,"(Lower vs Upper Flr? - see OUBO)","Upper Level 1950-VFSR-Ordinary, Lower Level 2017-VUSBC 2012-Type IIIB","0% (100% upcoming renov)",2]
[229,"Fac Mgmt S Garages",3,"1455 Leake Dr",null,"(TBD - see OUBO)",null,0]
[231,"Stores Warehouse",3,"580 McCormick Rd ",null,"Maintain Unprotected Metal per VFSR","1963-VFSR-Unprotected Metal",0,2]
[232,"Fac Mgmt Stores & Receiving",3,"1571 Pratt Dr",null,"Maintain Type VB per VUSBC 2012","?-VFSR-Unprotected Metal, Renov 2015-VUSBC 2012-Type VB (due to fire separ dist)",1]
[233,"Fac Mgmt Storage #1",3,"492 Pratt Dr ",null,"Maintain Type VB per VUSBC 2012","?-VFSR-Unprotected Metal, Renov 2015-VUSBC 2012-Type VB (due to fire separ dist)",1]
[234,"Skipwith Hall",3,"1490 Leake Dr",null,"Maintain Type IIB per VUSBC 2009","2015-VUSBC 2009-Type IIB",1]
[237,"Fac Mgmt Salt Spreader Shed",3,"no Alderman Rd ",null,"(TBD - see OUBO)",null,0]
[238,"Fac Mgmt Landscape Shop ",3,"1597 Pratt Dr",null,"Maintain Type VB per VUSBC 2009","2013-VUSBC 2009-Type VB",1]
[243,"Fac Mgmt Landscape Shop",3,"457 Pratt Dr ",null,"(TBD - see OUBO)",null,0]
[247,"Fac Mgmt Pratt Drive Unit / Pratt North Trailer",3,"575 Alderman Rd ",null,"Maintain VB per VUSBC 2003","(industrialized building - per registration sticker in trailer)",0,1]
[248,"Spreader Shed East",3,"1544 Pratt Dr",null,"Maintain IIB per VUSBC 2015","2018-Type IIB-VUSBC 2015",0,1]
[249,"Spreader Shed West",3,"1546 Pratt Dr",null,"Maintain IIB per VUSBC 2015","2018-Type IIB-VUSBC 2015",0,1]
[250,"Peyton House Modular Office",3,"164 Rugby Rd ",null,"(TBD - see OUBO)"]
[251,"Forestry Building Garage",3,"570 McCormick Rd ",null,"Maintain Ordinary per VFSR","1953-VFSR-Ordinary",0]
[252,"Astronomy Building",3,"530 McCormick Rd ",null,"Maintain Ordinary per VFSR","1949/1952-VFSR-Ordinary",0,2]
[253,"University Press Warehouse",3,"500 Edgemont Rd ",null,"Maintain Unprotected Metal per VFSR","1965/1969-Unprotected Metal-VFSR",1,1]
[254,"Stone Hall (NRAO)",3,"520 Edgemont Rd ",null,"Maintain Type IIC per VUSBC 1996 w/ 2000 Amendments","2005 Addit & Reclassif-VUSBC 1996 w/ 2000 Amendments-Type IIC Unprotected",1]
[255,"Fac Mgmt Cabinet Shop",3,"490 Pratt Dr ",null,"Maintain Type VB per VUSBC 2012","?-VFSR-Unprotected Metal, Renov 2015-VUSBC 2012-Type VB (due to fire separ dist)",1]
[256,"Chemistry Building",3,"409 McCormick Rd ",null,"(orig constr or addit? - see OUBO)","1964-VFSR-Semi-fireproof, 2004 Sprinkler Upgrade-VUSBC 2000-Type IB","95% (Magnet Rms 111, 133 not sprinklered)"]
[null,"Chemistry Building Addition",null,null,null,null,"1995-VUSBC 1990-Type IIC Noncombustible unprotected ","100% (non-compliant hazard classif; separated from Chem Bldg)","4 + Basement"]
[257,"Biology Greenhouse",3,"646 Alderman Rd ",null,"Maintain Type IIB per VUSBC 2006","1967- Unprotected Metal - VFSR reclassified - VUSBC 2006",0]
[259,"Mechanical Engineering",3,"130 Chemistry Dr ",null,"Maintain Semi-Fireproof per VFSR","1971-VFSR-Semi-Fireproof",0]
[260,"Ruffner Hall",3,"405 Emmet St S",null,"Maintain Type IIA per VUSBC 2009","Renov 2014-VUSBC 2009-Type IIA",1,null,"X"]
[261,"Shelburne Hall/Highway Research",3,"530 Edgemont Rd ",null,"Maintain Noncombustible per VFSR","1971-VFSR-Noncombustible",0,3]
[263,"Special Materials Handling Fac /EHS",3,"515 Edgemont Rd ",null,"(orig constr or addit? - see OUBO)","Orig 1983-VUSBC 1981-Type IIC Noncombustible Unprotected, Addit 1993-VUSBC 1990 Ed 3rd Amendment-Type IIC","50% (original section)"]
[264,"Bavaro Hall",540,"417 Emmet St S",null,"Maintain Type IIB per VUSBC 2006","2010-VUSBC 2006-Type IIB",1]
[267,"Wilsdorf Hall",3,"395 McCormick Rd ",null,"Maintain Type IIB per VUSBC 1996 w/ 2000 Amendments","2007-VUSBC 1996 w/ 2000 Amendments-Type IIB",1,6,6]
[268,"Fac Mgmt Annex",3,"575 Alderman Rd ",null,"(TBD - see OUBO)",null,0]
[269,"Fac Mgmt Locker Shed",3,"575 Alderman Rd ",null,"(TBD - see OUBO)",null,0]
[270,"Materials Science",3,"140 Chemistry Dr ",null,"Maintain Type IIB per VUSBC 1978","Orig 1983-VUSBC 1978-IIB; Renov 2018-VUSBC 2012-IIB",1]
[271,"Fac Mgmt Operations Trailer",3,"575 Alderman Rd ",null,"(TBD - see OUBO)",null,0]
[272,"Fac Mgmt West Office Annex / Pratt South Trailer",3,"486 Pratt Dr ",null,"Maintain VB per VUSBC 2003","(industrialized building - per registration sticker in trailer)",0,1]
[273,"Lacy Hall",3,"510 Edgemont Rd ",null,"Maintain Type IIB per VUSBC 2009","?-VUSBC 2009-Type IIB",1]
[290,"Student Activities Building",3,"800 Alderman Rd ",null,"Maintain Type IIIC per VUSBC 1981","1985-VUSBC 1981-Type IIIC"]
[315,"Stadium Parking Garage",3,"1813 Stadium Rd ",null,"Maintain IB per VUSBC 1996","2000-VUSBC 1996-Type IB",1,null,"X"]
[317,"Fluids Research Laboratory",3,"570 Edgemont Rd ",null,"Maintain IIC per VUSBC 1993","1997-VUSBC 1993-Type IIC Unprotected","2% (furnace rm)"]
[319,"W Scott Stadium Parking",3,"2009 Stadium Rd ",null,"Maintain IIC per VUSBC 1990","1993-VUSBC 1990-Type IIC",0,null,"X"]
[321,"Aerospace Research Laboratory",3,"570 Edgemont Rd ",null,"Maintain Ordinary per VFSR","1948-VFSR-Ordinary","80% (old section sprinklered, addition not fully sprinklered)",1]
[322,"Aero Research Block House",3,"570 Edgemont Rd ",null,"(TBD - see OUBO)",null,0]
[323,"Aero Research Quonset #1",3,"570 Edgemont Rd ",null,"(TBD - see OUBO)",null,0]
[324,"Aero Research Storage Building",3,"570 Edgemont Rd ",null,"(TBD - see OUBO)",null,0]
[325,"Aero Research Quonset #2",3,"559 Edgemont Rd ",null,"(TBD - see OUBO)",null,0]
[326,"Aero Research Quonset #3",3,"561 Edgemont Rd ",null,"(TBD - see OUBO)",null,0]
[329,"Aero Research Trailer",3,"570 Edgemont Rd ",null,"(TBD - see OUBO)",null,0]
[330,"Small Observatory",3,"600 McCormick Rd ",null,"(TBD - see OUBO)",null,0]
[331,"McCormick Observatory",3,"600 McCormick Rd ",null,"(TBD - see OUBO)",1885,0]
[334,"Observatory Mountain Engineering Research Facility",3,"675 Old Reservoir Rd ",null,"Maintain Semi-Fireproof per VFSR","1957-VFSR-Semi-Fireproof",0]
[356,"High Energy Physics Lab",3,"605 Old Reservoir Rd ",null,"Maintain Semi-Fireproof per VFSR","1965-VFSR-Semi-Fireproof",0.05,2]
[373,"High Energy Physics Annex",3,"605 Old Reservoir Rd ",null,"(TBD - see OUBO)",null,0]
[396,"Runk Dining Hall",540,"265 Hereford Dr ",null,"Maintain Type IIB Per VUSBC 1987","1992-VUSBC 1987-Type IIB",1]
[401,"Emmet/Ivy Garage",540,"123 Emmet St N",null,"Maintain Type IIA per VUSBC 1996 w/ 2000 Amendments","2004-VUSBC 1996 w/ 2000 Amendments-Type IIA","0% (standpipe only)",5]
[406,"Fayerweather Hall",3,"151 Rugby Rd ",null,"Maintain Type IIIB per VUSBC 1996","Orig 1895-VFSR-?; Renov 2007-VUSBC 1996-Type IIIB",1]
[407,"UVA Art Museum - Fralin (The Bayly Building)",3,"155 Rugby Rd ",null,"Maintain Type IIIB per VUSBC 1993","1933-VFSR-Semi-fireproof; Addit 1964/Renov 1996-VUSBC 1993-Type IIIB",0,null,"X"]
[421,"Madison Hall",540,"1827 University Ave ",null,"Maintain Type IIIC per VUSBC 1978","1890/1930-VFSR-Semi-Fireproof, Renov 1983-VUSBC 1978-Type IIIC",0.05]
[425,"Chi Phi House No",null,"161 Rugby Rd",null,"Maintain Ordinary per VFSR","1922-VFSR-Ordinary"]
[431,"Lambeth Colonnade",3,"no address no ",null,"(TBD - see OUBO)",null,0]
[436,"Bemiss House",540,"210 Sprigg Ln ",null,"(TBD - see OUBO)",null,0.5]
[438,"Campbell Hall",3,"110 Bayly Dr ",null,"Maintain Type IIB per VUSBC 2000","1970-, Addit 2010-VUSBC 2000-Type IIB entire bldg",1,null,"X"]
[439,"Peyton House",540,"164 Rugby Rd ",null,"Maintain Frame construction per VFSR","1925; Addit 1969-VFSR-Assumed Frame",0]
[440,"Ruffin Hall",3,"179 Culbreth Rd ",null,"Maintain Type IIB per VUSBC 2000","2005-VUSBC 2000-Type IIB",1]
[441,"Lorna Sundberg International Center",540,"21 University Cir ",null,"Maintain Ordinary per VFSR","1914-VFSR-Ordinary",0,2]
[442,"Drama Education Building",3,"109 Culbreth Rd ",null,"Maintain Type IIA per VUSBC 2006","1971-VFSR-?; Renov/Addit 2014-VUSBC 2006-Type IIA",1,3,"X"]
[443,"International House Garage",3,"21 University Cir ",null,"(TBD - see OUBO)",null,0]
[444,"Peyton House Annex",540,"164 Rugby Rd ",null,"(TBD - see OUBO)",null,0]
[446,"Culbreth Road Garage",3,"130 Culbreth Rd ",null,"(TBD - see OUBO)"]
[447,"Carr's Hill Field Support Facility",3,"1989 University Ave ",null,"(TBD - see OUBO)",null,0.75]
[448,"Hunter Smith Band Building",3,"180 Culbreth Rd ",null,"Maintain Type IIA per VUSBC 2006","2012-VUSBC 2006-Type IIA",1]
[449,"Thrust Theatre - same building as 0442",3,"109 Culbreth Rd ",null,"Maintain Type IIA per VUSBC 2006","1971-VFSR-?; Renov/Addit 2014-VUSBC 2006-Type IIA",1,3,"X"]
[481,"Env. Sci. Shop Building",3,"563 Edgemont Rd ",null,"Maintain Type VB per VUSBC 1990","1993-VUSBC 1990-Type VB",0]
[482,"Env. Sci Greenhouse",3,"565 Edgemont Rd ",null,"(TBD - see OUBO)",null,0]
[526,"Clay Hall",3,"580 Massie Rd ",null,"Maintain Type IB per VUSBC 1993","1999-VUSBC 1993-Type IB",1]
[527,"Withers-Brown Hall",3,"580 Massie Rd ",null,"(orig constr or renov? - see OUBO)","PH 1: 1974-VFSR-Semi-fireproof\nPH 2: 1979-VUSBC 1975- \nPH 3: 1994-VUSBC 1993-Type IB",1]
[528,"Slaughter Hall",3,"570 Massie Rd ",null,"(orig constr or renov? - see OUBO)","1974-VFSR-Semi-fireproof\n2013 South Renov-VUSBC 2009-Type IB",1]
[529,"Hunton and Williams Hall",3,"580 Massie Rd ",null,"(TBD - see OUBO)",null,1]
[531,"Student Faculty Center (Law)",3,"685 Nash Dr ",null,"(TBD - see OUBO)",null,1]
[532,"TJAGLCS School",540,"600 Massie Rd ",null,"Maintain Semi-Fireproof per VFSR","1972-VFSR-Semi-fireproof","partial",5,"X"]
[534,"TJAGLCS School Addition",540,"600 Massie Rd ",null,"Maintain Type IB per VUSBC 1981","1987-VUSBC 1981-Type IB Non-combustible protected",1,3]
[550,"Saunders Hall",3,"100 Darden Blvd ",null,"Maintain Type IIC per VUSBC 1990","1993 -VUSBC 1990-Type IIC Unprotected",1,3,"X"]
[551,"Darden Classroom",3,"110 Darden Blvd ",null,"Maintain Type IIC per VUSBC 1990","1997-VUSBC 1990-Type IIC; Addit 2003-VUSBC 1996-Type IIC",1,null,"X"]
[552,"Darden Faculty",3,"90 Darden Blvd ",null,"Maintain Type IIC per VUSBC 1990","1997-VUSBC 1990-Type IIC; Addit 2003-VUSBC 1996-Type IIC",1,null,"X"]
[553,"Abbott Center",3,"120 Darden Blvd ",null,"(TBD - see OUBO)",null,1,null,"X"]
[554,"Darden / Camp Library",3,"80 Darden Blvd ",null,"Maintain Type IIC per VUSBC 1990","1993-VUSBC 1990 2nd Amend-Type IIC Unprotected",1,null,"X"]
[555,"Darden Parking Garage",3,"130 Darden Blvd ",null,"Maintain Type IIC per VUSBC 1996","2004-VUSBC 1996-Type IIC Unprotected",0,null,"X"]
[556,"Sponsors Hall West (Darden Inn)",3,"20 Duffy Blvd ",null,"Maintain Type IIC per VUSBC 1996 w/ 2000 Amendments (Addit); Type IIC per VUSBC 1990 (Orig)","1996 (Orig)-VUSBC 1990-Type IIC; 2004 (Addit)-VUSBC 1996 w/ 2000 Amendments-Type IIC",1,4,"X"]
[557,"Sponsors Hall Gatehouse",3,"10 Duffy Blvd ",null,"Maintain Type IIC per VUSBC 1990","1996 (Orig)-VUSBC 1990-Type IIC",1,2,"X"]
[558,"Sponsors Hall East",3,"540 Massie Rd ",null,"Maintain Type IIC per VUSBC 1981 (Addit)","1979(Orig)-VUSBC 1974 Accumulative Supplement-Type IIC; 1985 (Addit)-VUSBC 1981-Type IIC w/ 1 hr rating of basement ceiling/1st flr in R-1 portion","partial",3,"X"]
[559,"Sponsors Hall Dining",3,"600 Nash Dr ",null,"(TBD - see OUBO)",1975]
[580,"Carruthers Hall",540,"1001 Emmet St ",null,"Maintain Noncombustible per VFSR","1951-VFSR-Noncombustible, 1959, 1963, 1970, 1992","5% (computer rms)"]
[581,"Michie North 918 Emmet Street",540,"918 Emmet St ",null,"Maintain Noncombustible per VFSR","1966-VFSR-Noncombustible",0]
[582,"Michie South 914 Emmet Street",540,"914 Emmet St ",null,"Maintain Noncombustible per VFSR","1966-VFSR-Noncombustible",0,3]
[583,"Parking & Transit",540,"1101 Millmont St ",null,"Maintain IIC per VUSBC 1981","?-?-?; 1985 Renov-VUSBC 1981-Type IIC",1]
[593,"Ivy Stacks Pump House",3,"2450 Old Ivy Rd ",null,"(TBD - see OUBO)","2011-VUSBC 2006-Type "]
[594,"Ivy Stacks",3,"2450 Old Ivy Rd ",null,"Review w/ OUBO - Temporary VB per VUSBC 2015 while modular is in place","1994-VUSBC 1987-Type IIC",1,null,null,null,"Return to - Maintain IIC per VUSBC 1987 - after Modular is removed"]
[595,"Fontana Food Center",3,"2454 Old Ivy Rd ",null,"Maintain Type IIC per VUSBC 1978","Renov 1981-VUSBC 1978-Type IIC",1]
[596,"Printing Service Center",3,"2474 Old Ivy Rd ",null,"Maintain Type IIC per VUSBC 1978","Renov/Addit 1982-VUSBC 1978-Type IIC",1]
[597,"McGuffey Ash Storage/Carport",3,"2454 Old Ivy Rd ",null,"(TBD - see OUBO)",null,0]
[598,"Printing Service Center Addition",3,"2474 Old Ivy Rd ",null,"(TBD - see OUBO)"]
[599,"2476 Old Ivy Road",3,"2476 Old Ivy Rd ",null,"Maintain Type IIB per VUSBC 2006","2011-VUSBC 2006-Type IIB",1,null,null,null,"(Data Center)"]
[600,"SALT STORAGE SHED",3,"2454 OLD IVY RD",null,"(TBD - see OUBO)"]
[601,"SALT SPREADER SHED",3,"2454 OLD IVY RD",null,"(TBD - see OUBO)"]
[603,"Faulkner House",3,"2201 Old Ivy Rd ",null,"Maintain Type IIIB per VUSBC 1996","1964, 2003-VUSBC 1996-Type IIIB",1]
[604,"Recycling Sorting Facility",3,"2456 Old Ivy RD",null,"Maintain Type IIB per VUSBC 2009","2014-VUSBC 2009-Type IIB",0,1]
[605,"Old Ivy Road Office Building",3,"2420 Old Ivy Rd ",null,"Maintain Type IIB per VUSBC 2012","2018-VUSBC 2012-Type IIB",1,3]
[606,"Old Ivy Road Parking Garage",3,"2420 Old Ivy Rd ",null,"Maintain Type IB per VUSBC 2012","2018-VUSBC 2012-Type IB",0,2]
[624,"Emergency Communications Center",3,"2306 Ivy Road",null,"Maintain Type IIIB per VUSBC 1993","1999-VUSBC 1993-Type IIIB",1,2]
[626,"Motorcycle Storage",3,"2308 Ivy Rd ",null,"(TBD - see OUBO)",null,0]
[627,"Police Bldg",3,"2304 Ivy Rd ",null,"Maintain IIIC per VUSBC 1978","Renov 1977-1975-Type VB?; Renov 1982-1978-Type IIIC","1% (1 head in boiler rm, no waterflow switch or fire alarm)"]
[630,"Birdwood Tower",3,"500 Birdwood Dr ",null,"(TBD - see OUBO)",null,0]
[631,"Birdwood Pavilion",3,"500 Birdwood Dr ",null,"(TBD - see OUBO)",null,0]
[632,"Birdwood NE Storage",3,"500 Birdwood Dr ",null,"(TBD - see OUBO)",null,0]
[633,"Birdwood SE Storage",3,"500 Birdwood Dr ",null,"(TBD - see OUBO)",null,0]
[634,"Birdwood SW Storage",3,"500 Birdwood Dr ",null,"(TBD - see OUBO)",null,0]
[635,"Birdwood NW Storage",3,"500 Birdwood Dr ",null,"(TBD - see OUBO)",null,0]
[636,"Birdwood Brick Barn",3,"480 Birdwood Dr ",null,"(TBD - see OUBO)",null,0]
[637,"Birdwood Wood Garage",3,"480 Birdwood Dr ",null,"(TBD - see OUBO)",null,0]
[639,"Birdwood Stone Shed",3,"480 Birdwood Dr ",null,"(TBD - see OUBO)",null,0]
[644,"Birdwood Stone Silo",3,"480 Birdwood Dr ",null,"(TBD - see OUBO)",null,0]
[660,"Milton Airport House",3,"2298 Milton Rd ",null,"Maintain IIB per VUSBC 2015","1940-VFSR-Semi-Fireproof; 2015 Reclassified-VUSBC 2015-Type IIB",0]
[661,"Milton Airport Hangar Bldg",3,"2300 Milton Rd ",null,"(TBD - see OUBO)",null,0]
[662,"Milton Airport Support Bldg/Regional Firearms Training Center",3,"2300 Milton Rd ",null,"Maintain Type IIB per VUSBC 2012","2016-VUSBC 2012-Type IIB",0,1]
[698,"EMS Radio Relay/Fan Mtn",3,"5741 Fan Mountain Rd ",null,"(TBD - see OUBO)",null,0]
[699,"Fan Mt. Cottage",3,"5735 Fan Mountain Rd ",null,"Maintain Frame per VFSR","1973-VFSR-Frame",0,1]
[700,"Fan Mt. Station House",3,"5741 Fan Mountain Rd ",null,"(TBD - see OUBO)",null,0]
[701,"Fan Mt. 31 Inch Low Dome",3,"5741 Fan Mountain Rd ",null,"(TBD - see OUBO)",null,0,1]
[702,"Fan Mt. 10 Inch Low Dome",3,"5741 Fan Mountain Rd ",null,"(TBD - see OUBO)",null,0]
[703,"Fan Mt. 40 Inch High Dome",3,"5741 Fan Mountain Rd ",null,"(TBD - see OUBO)",null,0]
[800,"Child Care Center",3,"180 Copeley Rd ",null,"Maintain Type VA per VUSBC 1987","1991-VUSBC 1987-Type VA","100% (dry in attic, wet elsewhere)",1,"X"]
[810,"Equipment Storage",540,"468 Copeley Road"]
[811,"Sports Nutrition",540,"472 Copeley Rd"]
[813,"Sports Medicine",540,"476 Copeley Rd"]
[815,"Strength Training",540,"478 Copeley Rd"]
[849,"FAC INFRASTRUCTURE",3,"no address  ",null,"(TBD - see OUBO)",null,1]
[851,"OUTDOORS -IN COUNTY",3,"no address  ",null,"(TBD - see OUBO)"]
[1102,"Corner Building",3,"1400 University Ave ",null,"Maintain Ordinary per VFSR","1913-VFSR-Ordinary",0]
[1141,"Claude Moore Health Sciences Library",540,"1350 Jefferson Park Ave ",null,"Maintain Semi-Fireproof per VFSR","Orig 1973-VFSR-Semi-Fireproof",1]
[1142,"Pinn Hall (Original)",540,"1340 Jefferson Park Ave ",null,"(orig constr or addit? - see OUBO)","1971-VFSR-Fireproof","100% project underway",10]
[null,"Pinn Hall (Annex)",540,"1340 Jefferson Park Ave ",null,null,"1992-VUSBC 1990-Type IIA-2 HOUR FLR RATING PER BOCA 602.4.3.1",1,10,"X"]
[1143,"Primary Care Center",540,"1221 Lee St ",null,"Maintain Type IIA per VUSBC 1974","1979-VUSBC 1974-Type IIA Noncombustible Protected",1,6]
[1146,"Emily Couric Clinical Cancer Center",540,"1240 Lee St ",null,"(orig constr or addit? - see OUBO)","?-VUSBC 2003-Type IIA; 2016 (ERC Addit)-VUSBC 2009-Type IIA",1,5]
[1147,"Claude Moore Medical Education Building",540,"200 Jeanette Lancaster Way ",null,"Maintain Type IIA per VUSBC 2003","2010-VUSBC 2003-Type IIA",1,3]
[1148,"East Parking Garage (Lee St Garage)",540,"1210 Lee St ",null,"Maintain Type IIA per VUSBC 1990","1985-VUSBC 1981-Type IIA; 1993 Addit-VUSBC 1990-Type IIA",1]
[1149,"11th Street Parking Garage",540,"117 11th St SW",null,"Maintain Type IIB per VUSBC 2003","2008-VUSBC 2003-Type IIB Unprotected"]
[1150,"University Hospital",540,"1215 Lee St ",null,"Maintain Type IA per VUSBC 1987","1989-VUSBC 1987-Type IA",1,11,"X"]
[1151,"Hospital Link",3,"1335 Lee St ",null,"(TBD - see OUBO)"]
[1152,"Helicopter Pad",540,"no Lee St ",null,"(TBD - see OUBO)"]
[1154,"South Parking Garage",540,"380 Crispell Dr ",null,"Maintain Type IIC per VUSBC 1993 (orig)/2000 (addit)","1999 (Orig)-VUSBC 1993-Type IIC; 2005 (Addit)-VUSBC 2000-Type IIC",0,"5 plus basement"]
[1155,"Biomed. Eng. & Medical Sci. Bld. (MR-5)",540,"415 Lane Rd ",null,"Maintain Type IIA per VUSBC 1996","?-VUSBC 1996-Type IIA",1,null,"X"]
[1157,"Medical Research Lab (MR-4)",540,"409 Lane Rd ",null,"Maintain Type IIB per VUSBC 1981","1984-VUSBC 1981-Type IIB",1,8]
[1161,"Carter-Harrison Research Building (MR-6)",540,"345 Crispell Dr ",null,"Maintain Type IB per VUSBC 2000","2010-VUSBC 2000-Type IB",1,6]
[1162,"Focused Ultrasound",540,"337 Crispell Dr ",null,"Maintain Type IIB per VUSBC 2006","??-VUSBC 2006-Type IIB",1]
[1164,"Primary Care Center Annex",540,"412 Lane Road ",null,"(TBD - see OUBO)"]
[1170,"Multistory Entry Pavilion",3,"1335 Lee St ",null,"(TBD - see OUBO)"]
[1172,"Multistory Building",3,"1335 Lee St ",null,"Maintain Type IB per VUSBC 1996 w/ 2000 Amendments","1960-VFSR-Noncombustible, 1996 VUSBC w/ 2000 Amend-Type IB per West Complex Study",1,null,"X"]
[1173,"Davis Wing",3,"101 Hospital Dr ",null,"Maintain Type IIB per VUSBC 1996 w/ 2000 Amendments","1927/38/50-VUSBC 1996 w/ 2000 Amendments-Type IIB",1,null,"X"]
[1174,"Collins (formerly Barringer) Wing",3,"101 Hospital Dr ",null,"Maintain Type IIB per VUSBC 1996 w/ 2000 Amendments","1935/52-VUSBC 1996 w/ 2000 Amendments-Type IIB",1,null,"X"]
[1175,"McIntire Wing",3,"101 Hospital Dr ",null,"Maintain Type IIB per VUSBC 1996 w/ 2000 Amendments","1922-VUSBC 1996 w/ 2000 Amendments-Type IIB",1,null,"X"]
[1176,"Clinical Department Wing",3,"81 Hospital Dr ",null,"Maintain Type IIB per VUSBC 1996 w/ 2000 Amendments","1939/54/61/64/76/84 -1996 VUSBC w/ 2000 Amend-Type IIB per West Complex study",1,null,"X"]
[1177,"Central Wing",3,"81 Hospital Dr ",null,"Maintain Type IIB per VUSBC 1996 w/ 2000 Amendments",1890,1,null,"X"]
[1178,"North Wing",3,"81 Hospital Dr ",null,"Maintain Type IIB per VUSBC 1996 w/ 2000 Amendments",1903,1]
[1179,"X-Ray Storage Bldg",3,"81 Hospital Dr ",null,"Maintain Type IIB per VUSBC 1996 w/ 2000 Amendments","1920/40",1]
[1180,"Steele Wing",3,"21 Hospital Dr ",null,"Maintain Type VB per VUSBC 1996 w/ 2000 Amendments","1920 - VFSR",1,null,"X"]
[1181,"Medical School Bldg",3,"21 Hospital Dr ",null,"Maintain Type IIB per VUSBC 1996 w/ 2000 Amendments","1927/50/84-VUSBC 1996 w/ 2000 Amendments-Type IIB",1,null,"X"]
[1182,"Suhling Research Lab",3,"1335 Lee St ",null,"Maintain Type IB per VUSBC 1996 w/ 2000 Amendments","1950/57",1]
[1183,"X-Ray Wing",3,"1335 Lee St ",null,"Maintain Type IIB per VUSBC 1996 w/ 2000 Amendments",1974,1]
[1184,"Medical School Transformer",3,"21 Hospital Dr ",null,"(TBD - see OUBO)",null,0]
[1189,"CDW Utility",3,"81 Hospital Dr ",null,"(TBD - see OUBO)",null,0]
[1194,"Cobb Hall",3,"135 Hospital Dr ",null,"Maintain Ordinary per VFSR","1917/49-VFSR-Ordinary","70% (attic)",null,"X"]
[1195,"McKim Hall",3,"1415 Jefferson Park Ave ",null,"1930 Original Ordinary w/ 1944 Addition Noncombustible per VFSR","1931/49-VFSR-Noncombustible",0]
[1196,"Davis Transformer",3,"no Jefferson Park Ave ",null,"(TBD - see OUBO)",null,0]
[1600,"KCRC Children's Rehab Center",3,"2270 Ivy Rd ",null,"(TBD - see OUBO)"]
[1602,"Ivy Mountain Musculoskeletal Center",3,"2280 Ivy Rd"]
[1626,"KCRC Commonwealth Court",3,"311 Reed Lane ",null,"(TBD - see OUBO)"]
[1628,"KCRC Cochran House",3,"407 Poplar Glen Lane ",null,"Maintain Frame per VFSR","1950-VFSR-Frame",0]
[1674,"Vivarium Building # 3",3,"80 Research Way ",null,"(TBD - see OUBO)",null,0]
[1676,"Vivarium Building #20",3,"150 Research Way ",null,"(TBD - see OUBO)",null,0]
[1677,"Vivarium Building #21",3,"150 Research Way ",null,"(TBD - see OUBO)",null,0]
[1679,"Vivarium Storage",3,"150 Research Way ",null,"(TBD - see OUBO)",null,0]
[1680,"Vivarium Pump House",3,"150 Research Way ",null,"(TBD - see OUBO)",null,0]
[1684,"Vivarium Incinerator",3,"115 Incinerator Dr ",null,"(TBD - see OUBO)",null,0]
[1685,"Medical School Storage",3,"104 Incinerator Dr ",null,"(TBD - see OUBO)",null,0]
[1686,"Environmental Safety Storage",3,"100 Incinerator Dr ",null,"(TBD - see OUBO)",null,0]
[1693,"Sieg Warehouse",3,"2927 Ivy Rd ",null,"(TBD - see OUBO)"]
[1697,"Moser Radiation Therapy Center",3,"2871 Ivy Rd ",null,"(TBD - see OUBO)"]
[1756,"Fontaine Medical Office Building 2",3,"545 Ray C. Hunt Dr ",null,"Maintain Type IIC per VUSBC 1993","1997-VUSBC 1993-Type IIC Unprotected",1]
[1760,"Sheridan G. Snyder Translational Research Building",3,"480 Ray C. Hunt Dr ",null,"Maintain Type IB per VUSBC 2006","2008-VUSBC 2006-Type IB",1]
[1765,"Emerging Technology Center Modular Lab",3,"1672 Discovery Dr ",null,"(TBD - see OUBO)",null,0]
[1985,"Stacey Hall",540,"1105 Main St W",null,"Maintain IIC per VUSBC 1981","1957-VFSR Group D ??/1985-VUSBC 1981-Type IIC",1,1]
[1988,"Malcolm W Cole Child Care Center",540,"839 Estes St ",null,"(TBD - see OUBO)",null,null,null,"X"]
[1991,"Battle Building at the UVa Children’s Hospital",540,"1204 West Main Street",null,"Maintain Type IA per VUSBC 2006 w/ reduction to IB (No reduction for column fire-resistance rating)","2014-VUSBC 2006-Type IA",1]
[1994,"Jefferson Park Medical Office Building",540,"1222 Jefferson Park Ave ",null,"Maintain Semi-Fireproof per VFSR","1970-VFSR-Semi-fireproof",1,6]
[1998,"UVA Clinical Laboratory",540,"112 11th St SW",null,"Maintain Type VB per VUSBC 2000 (East/South walls non-compliant due to fire separ dist)","2004-VUSBC 2000-Type VB (East/South exter walls non-compliant, should have 1 hr rating b/c of prop line)","floors yes, attic no"]
[2003,"West Range Dorm",3,"197 McCormick Rd ",null,"(TBD - see OUBO)",null,1,null,"X"]
[2012,"Pavilion I",3,"1 West Pav ",null,"Maintain Ordinary per VFSR","1822-VFSR-Ordinary",0.75]
[2013,"West Lawn Dorm",3,"15 West Lawn ",null,"(TBD - see OUBO)",null,1]
[2014,"The Mews",3,"169 McCormick Rd ",null,"(TBD - see OUBO)","18__-VFSR-Ordinary",0]
[2015,"Pavilion III",3,"3 West Pav ",null,"Maintain Ordinary per VFSR","1821-VFSR-Ordinary",0,null,"X"]
[2019,"Pavilion V",3,"5 West Pav ",null,"Maintain Ordinary per VFSR","1826-VFSR-Ordinary",0.75]
[2021,"West Lawn Wash Room",3,"189 McCormick Rd ",null,"(TBD - see OUBO)",null,0]
[2025,"Pavilion IX",3,"9 West Pav ",null,"(TBD - see OUBO)",null,0]
[2027,"McGuffey Cottage",3,"219 McCormick Rd ",null,"(TBD - see OUBO)",null,0]
[2028,"West Lawn Garage",3,"9 West Pav ",null,"(TBD - see OUBO)",null,0]
[2029,"Pavilion II",3,"2 East Pav ",null,"Maintain Ordinary per VFSR","?-VFSR-Ordinary",0.75,null,"X"]
[2030,"East Lawn Dorm",3,"12 East Lawn ",null,"(TBD - see OUBO)",null,1,null,"X"]
[2032,"Pavilion IV",3,"4 East Pav ",null,"(TBD - see OUBO)",null,0]
[2035,"Pavilion VI",3,"6 East Pav ",null,"Maintain Ordinary pre VFSR",null,0,null,"X"]
[2038,"Pavilion VIII",3,"8 East Pav ",null,"Maintain Ordinary per VFSR","1825-VFSR-Ordinary",0,null,"X"]
[2041,"Pavilion X",3,"10 East Pav ",null,"Maintain Ordinary pre VFSR",null,"75% (1st Flr LR/DR unsprinklered).",null,"X"]
[2043,"East Lawn Garage",3,"10 East Pav ",null,"(TBD - see OUBO)",null,0]
[2045,"East Range Dorm",3,"48 Rotunda Dr ",null,"(TBD - see OUBO)",null,1]
[2048,"Hotel D",3,"36 Rotunda Dr ",null,"(TBD - see OUBO)",null,0,null,"X"]
[2053,"Crackerbox",3,"54 Rotunda Dr ",null,"(TBD - see OUBO)",null,0,null,"X"]
[2070,"Davis House",3,"82 Monroe Hill ",null,"Maintain Semi-Fireproof per VFSR","1928-VFSR-Semi-fireproof",null,null,"X"]
[2071,"Smith House",3,"92 Monroe Hill ",null,"Maintain Semi-Fireproof per VFSR","1928-VFSR-Semi-fireproof"]
[2072,"Mallet House",3,"84 Monroe Hill ",null,"Maintain Semi-Fireproof per VFSR","1928-VFSR-Semi-fireproof"]
[2073,"Long House",3,"84 Monroe Hill ",null,"Maintain Semi-Fireproof per VFSR","1928-VFSR-Semi-fireproof"]
[2074,"Venable House",3,"80 Monroe Hill ",null,"Maintain Semi-Fireproof per VFSR","1928-VFSR-Semi-fireproof"]
[2075,"Gildersleeve House",3,"72 Monroe Hill ",null,"Maintain Semi-Fireproof per VFSR","1928-VFSR-Semi-fireproof"]
[2076,"McGuffey House",3,"72 Monroe Hill ",null,"Maintain Semi-Fireproof per VFSR","1928-VFSR-Semi-fireproof"]
[2077,"Harrison House",3,"72 Monroe Hill ",null,"Maintain Semi-Fireproof per VFSR","1928-VFSR-Semi-fireproof"]
[2078,"Tucker House",3,"62 Monroe Hill ",null,"Maintain Semi-Fireproof per VFSR","1928-VFSR-Semi-fireproof"]
[2079,"Holmes House",3,"60 Monroe Hill ",null,"Maintain Semi-Fireproof per VFSR","1928-VFSR-Semi-fireproof"]
[2080,"Rogers House",3,"60 Monroe Hill ",null,"Maintain Semi-Fireproof per VFSR","1928-VFSR-Semi-fireproof"]
[2081,"Peters House",3,"52 Monroe Hill ",null,"Maintain Semi-Fireproof per VFSR","1928-VFSR-Semi-fireproof"]
[2084,"Monroe Hill Garage",3,"252 McCormick Rd ",null,"(TBD - see OUBO)",null,0]
[2085,"Monroe Hill House",3,"252 McCormick Rd ",null,"Maintain Ordinary per VFSR","1814-VFSR-Ordinary",0,2]
[2086,"Monroe Hill Range",3,"256 McCormick Rd ",null,"Maintain Ordinary per VFSR",null,0,2]
[2132,"Casa Bolivar/Spanish House",540,"1408 Jefferson Park Ave ",null,"(TBD - see OUBO)"]
[2144,"Shea House",540,"400 Monroe Ln ",null,"(TBD - see OUBO)",null,1,null,"X"]
[2145,"Barringer Mansion",540,"1404 Jefferson Park Ave ",null,"(TBD - see OUBO)"]
[2146,"Bice House",540,"583 Brandon Ave ",null,"Maintain Semi-Fireproof per VFSR","1972-VFSR-Semi-fireproof: 2004-VUSBC 1996w/2000Amendments-Type IIA",1,8]
[2148,"Student Health & Wellness Center",540,"550 Brandon Ave"]
[2150,"Bond House (Brandon Ave Upper Class Housing 1)",540,"600 Brandon Avenue",null,"Maintain Type IB per VUSBC 2012","2017-VUSBC 2012 - Type IB",100,7]
[2167,"Oakhurst Cir 118",540,"118 Oakhurst Cir ",null,"(TBD - see OUBO)"]
[2168,"Oakhurst Cir Garage",540,"118 Oakhurst Cir ",null,"(TBD - see OUBO)"]
[2200,"Montebello",540,"1700 Stadium Rd ",null,"Maintain Ordinary per VFSR","1819+-VFSR-Ordinary",0]
[2201,"Montebello Garage",540,"1700 Stadium Rd ",null,"(TBD - see OUBO)",null,0]
[2211,"Page House",3,"420 McCormick Rd ",null,"Maintain Ordinary per VFSR (1st Flr 2 hour rating)","early 1950s-VFSR-Ordinary w/ 2 Hr rated 1st Flr",null,4]
[2212,"Emmet House",3,"432 McCormick Rd ",null,"Maintain Ordinary per VFSR (1st Flr 2 hour rating)","early 1950s-VFSR-Ordinary w/ 2 Hr rated 1st Flr",null,4]
[2213,"Echols House",3,"450 McCormick Rd ",null,"Maintain Ordinary per VFSR (1st Flr 2 hour rating)","early 1950s-VFSR-Ordinary w/ 2 Hr rated 1st Flr",null,4]
[2214,"Humphreys House",3,"436 McCormick Rd ",null,"Maintain Ordinary per VFSR (1st Flr 2 hour rating)","early 1950s-VFSR-Ordinary w/ 2 Hr rated 1st Flr",null,4]
[2215,"Lefevre House",3,"35 Hancock Dr ",null,"Maintain Ordinary per VFSR (1st Flr 2 hour rating)","early 1950s-VFSR-Ordinary w/ 2 Hr rated 1st Flr",null,4]
[2216,"Metcalf House",3,"25 Hancock Dr ",null,"Maintain Ordinary per VFSR (1st Flr 2 hour rating)","early 1950s-VFSR-Ordinary w/ 2 Hr rated 1st Flr",null,4]
[2217,"Hancock House",3,"15 Hancock Dr ",null,"Maintain Ordinary per VFSR (1st Flr 2 hour rating)","early 1950s-VFSR-Ordinary w/ 2 Hr rated 1st Flr",null,4,"X"]
[2218,"Bonnycastle House",3,"10 Bonnycastle Dr ",null,"Maintain Ordinary per VFSR (1st Flr 2 hour rating)","early 1950s-VFSR-Ordinary w/ 2 Hr rated 1st Flr",1,4]
[2219,"Dabney House",3,"20 Bonnycastle Dr ",null,"Maintain Ordinary per VFSR (1st Flr 2 hour rating)","early 1950s-VFSR-Ordinary w/ 2 Hr rated 1st Flr",1,4]
[2220,"Kent House",3,"30 Bonnycastle Dr ",null,"Maintain Ordinary per VFSR (1st Flr 2 hour rating)","early 1950s-VFSR-Ordinary w/ 2 Hr rated 1st Flr",1,4]
[2303,"Dunnington House",3,"695 Alderman Rd ",null,"(TBD - see OUBO)"]
[2304,"Fitzhugh House",3,"735 Alderman Rd ",null,"Maintain Ordinary per VFSR","1964 or 67-VFSR-Ordinary"]
[2305,"Dunglison House",3,"775 Alderman Rd ",null,"Maintain Ordinary per VFSR","1964 or 67-VFSR-Ordinary"]
[2306,"Courtenay House",3,"795 Alderman Rd ",null,"Maintain Ordinary per VFSR","1964 or 67-VFSR-Ordinary"]
[2328,"Observatory House #2 (Vyssotsky)",3,"602 McCormick Rd ",null,"(TBD - see OUBO)"]
[2333,"Observatory House #1 (Alden)",3,"610 McCormick Rd ",null,"(TBD - see OUBO)",null,0]
[2335,"Mimosa Ct 134",3,"134 Mimosa Ct ",null,"(TBD - see OUBO)"]
[2336,"Mimosa Ct 138",3,"138 Mimosa Ct ",null,"(TBD - see OUBO)"]
[2337,"Mimosa Ct 144",3,"144 Mimosa Ct ",null,"(TBD - see OUBO)"]
[2338,"Mimosa Ct 148",3,"148 Mimosa Ct ",null,"(TBD - see OUBO)"]
[2339,"Mimosa Ct 147",3,"147 Mimosa Ct ",null,"(TBD - see OUBO)"]
[2340,"Mimosa Ct 143",3,"143 Mimosa Ct ",null,"(TBD - see OUBO)"]
[2341,"Mimosa Ct 137",3,"137 Mimosa Ct ",null,"(TBD - see OUBO)"]
[2342,"Mimosa Dr 125",3,"125 Mimosa Dr ",null,"(TBD - see OUBO)"]
[2343,"Mimosa Dr 123",3,"123 Mimosa Dr ",null,"(TBD - see OUBO)"]
[2344,"Mimosa Drive Storage (Ice House)",3,"121 Mimosa Dr ",null,"(TBD - see OUBO)"]
[2345,"Mimosa Dr 121 (Piedmont)",3,"121 Mimosa Dr ",null,"Maintain Frame per VFSR","1908-VFSR-Frame",0,2]
[2346,"Mimosa Dr 117",3,"117 Mimosa Dr ",null,"(TBD - see OUBO)"]
[2347,"Mimosa Dr 115",3,"115 Mimosa Dr ",null,"(TBD - see OUBO)"]
[2348,"Mimosa Dr 113",3,"113 Mimosa Dr ",null,"(TBD - see OUBO)"]
[2349,"Mimosa Dr 111",3,"111 Mimosa Dr ",null,"(TBD - see OUBO)"]
[2350,"Mimosa Dr 109",3,"109 Mimosa Dr ",null,"(TBD - see OUBO)"]
[2351,"Mimosa Dr 110",3,"110 Mimosa Dr ",null,"(TBD - see OUBO)"]
[2352,"Mimosa Dr 118",3,"118 Mimosa Dr ",null,"(TBD - see OUBO)"]
[2353,"Mimosa Dr 122",3,"122 Mimosa Dr ",null,"(TBD - see OUBO)"]
[2354,"Mimosa Dr 124",3,"124 Mimosa Dr ",null,"(TBD - see OUBO)"]
[2360,"Cauthen House",3,"450 Tree House Dr ",null,"Maintain Type IIC per VUSBC 1993","1996-VUSBC 1993-Type IIC",1,4,"X"]
[2366,"Woody House",3,"435 Tree house Dr ",null,"Maintain Type IIIB per VUSBC 1996","2001-VUSBC 1996-Type IIIB Unprotected",1,4,"X"]
[2367,"Stadium Rd. 2504",3,"2504 Stadium Rd ",null,"(TBD - see OUBO)"]
[2368,"Kellogg House",3,"579 McCormick Rd ",null,"Maintain Type IIB per VUSBC 2003","2008-VUSBC 2003-Type IIB Noncombustible",1,5]
[2369,"Balz-Dobie House",3,"571 McCormick Rd ",null,"(TBD - see OUBO)"]
[2370,"Watson-Webb House",3,"561 McCormick Rd ",null,"(TBD - see OUBO)"]
[2371,"Ern Commons",3,"567 McCormick Rd ",null,"(TBD - see OUBO)"]
[2372,"Lisle Maupin (Alderman Residence Phase III/Building #3)",3,"555 McCormick Rd ",null,"Maintain Type IIB per VUSBC 2006","2013-VUSBC 2006-Type IIB",1,5]
[2373,"Tuttle Dunnington (Alderman Residence Phase III/Building #4)",3,"565 McCormick Rd ",null,"Maintain Type IIB per VUSBC 2006","2013-VUSBC 2006-Type IIB",1,5]
[2374,"Shannon (Alderman Residence Phase III/Building #5)",3,"430 Tree House Dr ",null,"Maintain Type IIB per VUSBC 2006","2013-VUSBC 2006-Type IIB",1,5]
[2375,"Gibbons (Alderman Residence Phase V/Building #6)",3,null,null,"Maintain Type IIB per VUSBC 2009","2015-VUSBC 2009-Type IIB",1,5]
[2381,"Gooch Dorm 381",3,"478 Floyd Dr ",null,"Maintain Type IA per VUSBC 2012","1982-VUSBC 1978-Type IB, Renov 2015-VUSBC 2012-Type IA",1,4]
[2382,"Gooch Dorm 382",3,"480 Floyd Dr ",null,"Maintain Type IA per VUSBC 2012","1982-VUSBC 1978-Type IB, Renov 2015-VUSBC 2012-Type IA",1,4]
[2383,"Gooch Dorm 383",3,"484 Floyd Dr ",null,"Maintain Type IA per VUSBC 2012","1982-VUSBC 1978-Type IB, Renov 2015-VUSBC 2012-Type IA",1,4]
[2384,"Gooch Dorm 384",3,"496 Floyd Dr ",null,"Maintain Type IA per VUSBC 2012","1982-VUSBC 1978-Type IB, Renov 2015-VUSBC 2012-Type IA",1,4]
[2385,"Dillard Dorm 385",3,"508 Floyd Dr ",null,"Maintain Type IA per VUSBC 2012","1982-VUSBC 1978-Type IB, Renov 2015-VUSBC 2012-Type IA",1,4]
[2386,"Dillard Dorm 386",3,"520 Floyd Dr ",null,"Maintain Type IA per VUSBC 2012","1982-VUSBC 1978-Type IB, Renov 2015-VUSBC 2012-Type IA",1,4]
[2387,"Dillard Dorm 387",3,"526 Floyd Dr ",null,"Maintain Type IA per VUSBC 2012","1982-VUSBC 1978-Type IB, Renov 2015-VUSBC 2012-Type IA",1,4]
[2388,"Dillard Dorm 388",3,"528 Floyd Dr ",null,"Maintain Type IA per VUSBC 2012","1982-VUSBC 1978-Type IB, Renov 2015-VUSBC 2012-Type IA",1,4]
[2389,"Dillard Dorm 389",3,"532 Floyd Dr ",null,"Maintain Type IA per VUSBC 2012","1982-VUSBC 1978-Type IB, Renov 2015-VUSBC 2012-Type IA",1,4]
[2390,"Vaughan House",3,"185 Vaughan Dr ",null,"Maintain Type IIC per VUSBC 1987","1992-VUSBC 1987-Type IIC Unprotected"]
[2391,"Johnson House",3,"195 Vaughan Dr ",null,"Maintain Type IIC per VUSBC 1987","1992-VUSBC 1987-Type IIC Unprotected"]
[2392,"Malone House",3,"215 Hereford Dr ",null,"Maintain Type IIC per VUSBC 1987","1992-VUSBC 1987-Type IIC Unprotected"]
[2393,"Norris House",3,"225 Hereford Dr ",null,"Maintain Type IIC per VUSBC 1987","1992-VUSBC 1987-Type IIC Unprotected"]
[2394,"Weedon House",3,"235 Hereford Dr ",null,"Maintain Type IIC per VUSBC 1987","1992-VUSBC 1987-Type IIC Unprotected"]
[2395,"Whyburn House",3,"245 Hereford Dr ",null,"Maintain Type IIC per VUSBC 1987","1992-VUSBC 1987-Type IIC Unprotected"]
[2400,"Carr's Hill / President's House",3,"1900 Carr's Hill Rd ",null,"Maintain Ordinary per VFSR","1909-VFSR-Ordinary",0]
[2401,"Carr's Hill / Buckingham Palace",3,"1910 Carr's Hill Rd ",null,"Maintain Ordinary per VFSR","pre 1909-VFSR-Ordinary",0]
[2402,"Carr's Hill / President's Garage",3,"1900 Carr's Hill Rd ",null,"(TBD - see OUBO)",1909,0]
[2403,"Carr's Hill / Leake Cottage",3,"1920 Carr's Hill Rd ",null,"Maintain Ordinary per VFSR","1888-VFSR-Ordinary",0]
[2404,"Carr's Hill / Guest House",3,"1930 Carr's HIll Rd ",null,"Maintain Ordinary per VFSR","1910-VFSR-Ordinary",0,2]
[2410,"University Gardens A",540,"136 University Gard ",null,"(TBD - see OUBO)","1948-VFSR-Ordinary",0]
[2411,"University Gardens B",540,"130 University Gard ",null,"(TBD - see OUBO)","1948-VFSR-Ordinary",0]
[2412,"University Gardens C",540,"126 University Gard ",null,"(TBD - see OUBO)","1948-VFSR-Ordinary",0]
[2413,"University Gardens D",540,"120 University Gard ",null,"(TBD - see OUBO)","1948-VFSR-Ordinary",0]
[2414,"University Gardens E",540,"116 University Gard ",null,"(TBD - see OUBO)","1948-VFSR-Ordinary",0]
[2415,"University Gardens F",540,"84 University Gard ",null,"(TBD - see OUBO)","1948-VFSR-Ordinary",0]
[2416,"University Gardens G",540,"95 University Gard ",null,"(TBD - see OUBO)","1948-VFSR-Ordinary",0]
[2417,"University Gardens H",540,"83 University Gard ",null,"(TBD - see OUBO)","1948-VFSR-Ordinary",0]
[2422,"O'Neil Hall",3,"203 Rugby Rd ",null,"Maintain Type IIIB per VUSBC 2009","1922-VFSR, Renov 2015-VUSBC 2009-Type IIIB",1]
[2427,"Mary Munford Hall",3,"201 Sprigg Ln ",null,"Maintain Ordinary per VFSR","1951-VFSR-presumed Ordinary",null,3]
[2428,"Morea House",3,"209 Sprigg Ln ",null,"Maintain Ordinary per VFSR","1835-VFSR-presumed Ordinary",0]
[2429,"Morea Garage",3,"209 Sprigg Ln ",null,"(TBD - see OUBO)",null,0]
[2430,"Sprigg Lane House",540,"214 Sprigg Ln ",null,"Maintain Frame per VFSR","1939-VFSR-Frame",0,null,"X"]
[2433,"Little Morea",3,"211 Sprigg Ln ",null,"Maintain Ordinary per VFSR","1835-VFSR-Ordinary",0]
[2434,"Lewis Apts",3,"207 Sprigg Ln ",null,"Maintain Type 4B per VUSBC 1981","1984-VUSBC 1981-presumed Type 4B Unprotected",null,3]
[2435,"Hoxton Apts",3,"205 Sprigg Ln ",null,"Maintain Type 4B per VUSBC 1981","1984-VUSBC 1981-presumed Type 4B Unprotected",null,3]
[2440,"Gwathmey House",3,"203 Sprigg Ln ",null,"Maintain Ordinary per VFSR","1968-VFSR-presumed Ordinary",null,3]
[2447,"Slavic House/Cresap Road 102",540,"102 Cresap Rd ",null,"(TBD - see OUBO)"]
[2448,"Cresap Road 108",540,"108 Cresap Rd ",null,"(TBD - see OUBO)"]
[2450,"Lambeth Field #50",3,"50 Lambeth Comm ",null,"(TBD - see OUBO)","1973-VUSBC ??-??",null,null,"X"]
[2451,"Lambeth Field #51",3,"51 Lambeth Comm ",null,"(TBD - see OUBO)","Noncombustible per VFSR ????"]
[2452,"Lambeth Field #52",3,"52 Lambeth Comm ",null,"(TBD - see OUBO)"]
[2453,"Lambeth Field #53",3,"53 Lambeth Comm ",null,"(TBD - see OUBO)"]
[2454,"Lambeth Field #54",3,"54 Lambeth Comm ",null,"(TBD - see OUBO)"]
[2455,"Lambeth Field #55",3,"55 Lambeth Comm ",null,"(TBD - see OUBO)"]
[2456,"Lambeth Field #56",3,"56 Lambeth Comm ",null,"(TBD - see OUBO)"]
[2457,"Lambeth Field #57",3,"57 Lambeth Comm ",null,"(TBD - see OUBO)"]
[2458,"Lambeth Field #58",3,"58 Lambeth Comm ",null,"(TBD - see OUBO)"]
[2459,"Lambeth Field #59",3,"59 Lambeth Comm ",null,"(TBD - see OUBO)"]
[2460,"Lambeth Field #60",3,"60 Lambeth Comm ",null,"(TBD - see OUBO)"]
[2461,"Lambeth Field #61",3,"61 Lambeth Comm ",null,"(TBD - see OUBO)"]
[2462,"Lambeth Field #62",3,"62 Lambeth Comm ",null,"(TBD - see OUBO)"]
[2463,"Lambeth Field #63",3,"63 Lambeth Comm ",null,"(TBD - see OUBO)"]
[2464,"Lambeth Field Commons",3,"64 Lambeth Comm ",null,"(TBD - see OUBO)","1974-VFSR-Ordinary??",1,null,"X"]
[2465,"Lambeth Field #65",3,"65 Lambeth Comm ",null,"(TBD - see OUBO)"]
[2466,"Lambeth Field #66",3,"66 Lambeth Comm ",null,"(TBD - see OUBO)"]
[2467,"Lambeth Field #67",3,"67 Lambeth Comm ",null,"(TBD - see OUBO)"]
[2468,"Lambeth Field #68",3,"68 Lambeth Comm ",null,"(TBD - see OUBO)"]
[2469,"Lambeth Field #69",3,"69 Lambeth Comm ",null,"(TBD - see OUBO)"]
[2470,"Lambeth Field #70",3,"70 Lambeth Comm ",null,"(TBD - see OUBO)"]
[2471,"Lambeth Field #71",3,"71 Lambeth Comm ",null,"(TBD - see OUBO)"]
[2472,"Lambeth Field #72",3,"72 Lambeth Comm ",null,"(TBD - see OUBO)"]
[2473,"Lambeth Field #73",3,"73 Lambeth Comm ",null,"(TBD - see OUBO)"]
[2474,"Lambeth Field #74",3,"74 Lambeth Comm ",null,"(TBD - see OUBO)"]
[2475,"Lambeth Field #75",3,"75 Lambeth Comm ",null,"(TBD - see OUBO)"]
[2565,"Hench Apts",3,"472 Faulkner Dr ",null,"Maintain Type IIIC per VUSBC 1981","1983 - VUSBC 1981 - Type IIIC Unprotected",0]
[2566,"Mitchell Apts",3,"474 Faulkner Dr ",null,"Maintain Type IIIC per VUSBC 1981","1983 - VUSBC 1981 - Type IIIC Unprotected",0]
[2567,"Younger Apts",3,"476 Faulkner Dr ",null,"Maintain Type IIIC per VUSBC 1981","1983 - VUSBC 1981 - Type IIIC Unprotected",0]
[2568,"Faulkner Cottage W",3,"470 Faulkner Dr ",null,"(TBD - see OUBO)"]
[2569,"Faulkner Cottage E",3,"478 Faulkner Dr ",null,"(TBD - see OUBO)"]
[2605,"Faulkner Orchard House",3,"465 Faulkner Dr ",null,"(TBD - see OUBO)"]
[2606,"Faulkner Hedge House",3,"469 Faulkner Dr ",null,"(TBD - see OUBO)"]
[2607,"Faulkner Carriage House",3,"481 Faulkner Dr ",null,"(TBD - see OUBO)"]
[2616,"Duke House / Sunnyside",3,"2150 Barracks Rd ",null,"(TBD - see OUBO)",null,0]
[2638,"Birdwood Stone Barn",3,"480 Birdwood Dr ",null,"(TBD - see OUBO)"]
[2640,"Birdwood Cottage",3,"474 Birdwood Dr ",null,"(TBD - see OUBO)"]
[2641,"Birdwood Cash House",3,"470 Birdwood Dr ",null,"(TBD - see OUBO)"]
[2642,"Birdwood-Middleton's House",3,"457 Birdwood Dr ",null,"(TBD - see OUBO)"]
[2801,"Copeley Apts   #1",3,"210 Copeley Rd ",null,"(TBD - see OUBO)"]
[2802,"Copeley Apts   #2",3,"212 Copeley Rd ",null,"(TBD - see OUBO)"]
[2803,"Copeley Apts   #3",3,"412 Seymour Rd ",null,"(TBD - see OUBO)"]
[2804,"Copeley Apts   #4",3,"410 Seymour Rd ",null,"(TBD - see OUBO)"]
[2805,"Copeley Apts   #5",3,"433 Seymour Rd ",null,"(TBD - see OUBO)"]
[2806,"Copeley Apts   #6",3,"448 Seymour Rd ",null,"(TBD - see OUBO)"]
[2807,"Copeley Apts   #7",3,"474 Seymour Rd ",null,"(TBD - see OUBO)"]
[2808,"Copeley Apts   #8",3,"475 Seymour Rd ",null,"(TBD - see OUBO)"]
[2809,"Copeley Apts   #9",3,"510 Seymour Rd ",null,"(TBD - see OUBO)"]
[2810,"Copeley Apts  #10",3,"499 Seymour Rd ",null,"(TBD - see OUBO)"]
[2811,"Copeley Apts  #11",3,"517 Seymour Rd ",null,"(TBD - see OUBO)"]
[2812,"Copeley Apts  #12",3,"525 Seymour Rd ",null,"(TBD - see OUBO)"]
[2813,"Copeley Apts  #13",3,"520 Seymour Rd ",null,"(TBD - see OUBO)"]
[2814,"Copeley Apts  #14",3,"547 Seymour Rd ",null,"(TBD - see OUBO)"]
[2815,"Copeley Apts  #15",3,"278 Peyton Ct ",null,"(TBD - see OUBO)"]
[2816,"Copeley Apts  #16",3,"304 Peyton Ct ",null,"(TBD - see OUBO)"]
[2817,"Copeley Apts  #17",3,"324 Peyton Ct ",null,"(TBD - see OUBO)"]
[2818,"Copeley Apts  #18",3,"323 Peyton Ct ",null,"(TBD - see OUBO)"]
[2819,"Copeley Apts  #19",3,"293 Peyton Ct ",null,"(TBD - see OUBO)"]
[2820,"Copeley Apts  #20",3,"287 Peyton Ct ",null,"(TBD - see OUBO)"]
[2821,"Copeley Apts  #21",3,"285 Peyton Ct ",null,"(TBD - see OUBO)"]
[2822,"Copeley Apts  #22",3,"488 Farrish Cir ",null,"(TBD - see OUBO)"]
[2823,"Copeley Apts  #23",3,"476 Farrish Cir ",null,"(TBD - see OUBO)"]
[2824,"Copeley Apts  #24",3,"470 Farrish Cir ",null,"(TBD - see OUBO)"]
[2825,"Copeley Apts  #25",3,"454 Farrish Cir ",null,"(TBD - see OUBO)"]
[2826,"Copeley Apts  #26",3,"446 Farrish Cir ",null,"(TBD - see OUBO)"]
[2827,"Copeley Apts  #27",3,"422 Farrish Cir ",null,"(TBD - see OUBO)"]
[2828,"Copeley Apts  #28",3,"406 Farrish Cir ",null,"(TBD - see OUBO)"]
[2829,"Glenn House #829",3,"514 Buckler Dr ",null,"(TBD - see OUBO)",null,null,null,"X"]
[2830,"Glenn House #830",3,"510 Buckler Dr ",null,"(TBD - see OUBO)",null,null,null,"X"]
[2831,"Boyd House #831",3,"504 Buckler Dr ",null,"(TBD - see OUBO)",null,null,null,"X"]
[2832,"Boyd House #832",3,"500 Buckler Dr ",null,"(TBD - see OUBO)",null,null,null,"X"]
[2833,"Snavley House #833",3,"520 Buckler Dr ",null,"(TBD - see OUBO)",null,null,null,"X"]
[2834,"Snavley House #834",3,"524 Buckler Dr ",null,"(TBD - see OUBO)",null,null,null,"X"]
[2835,"Abbott House #835",3,"530 Buckler Dr ",null,"(TBD - see OUBO)",null,null,null,"X"]
[2836,"Abbott House #836",3,"534 Buckler Dr ",null,"(TBD - see OUBO)",null,null,null,"X"]
[2837,"Ribble House #837",3,"560 Buckler Dr ",null,"(TBD - see OUBO)",null,null,null,"X"]
[2838,"Ribble House #838",3,"564 Buckler Dr ",null,"(TBD - see OUBO)",null,null,null,"X"]
[2839,"Ribble House #839",3,"568 Buckler Dr ",null,"(TBD - see OUBO)",null,null,null,"X"]
[3480,"Ivy Road 1939",540,"1939 Ivy Rd ",null,"(TBD - see OUBO)",null,0]
[3488,"Villa Diner",540,"127 Emmet St N",null,"(TBD - see OUBO)"]
[3489,"Cavalier Inn",540,"105 Emmet St N",null,"(TBD - see OUBO)"]
[3490,"Recreation Building",540,"119 Emmet St N",null,"(TBD - see OUBO)"]
[3491,"Emmet 104",540,"104 Emmet St ",null,"(TBD - see OUBO)",null,0]
[3622,"Montesano",3,"465 Crestwood Dr ",null,"(TBD - see OUBO)",null,0]
[3656,"2400 Old Ivy Road",3,"2400 Old Ivy Rd ",null,"Maintain Type IIC per VUSBC 1981","1983-VUSBC 1981-Type IIC: Addit 1993-VUSBC 1990-??",0]
[3708,"UVA Endoscopy Monroe Lane",540,"500 Monroe Lane ",null,"Maintain Type IIB per VUSBC 2012","1984-VUSBC 1981-Type IIC, 1995 Expan-VUSBC 1993-Type IIC, 1998 2nd Flr Addit-VUSBC 1996-Type ?, 2012 Modular Oper Rms-VUSBC 2009-Type IIB, Full Renov-VUSBC 2012-Type IIB",1]
[3711,"Northridge Building",null,null,null,"Maintain Type IIC per VUSBC 1990","1984-??; 1994-VUSBC 1990-IIC",1,null,null,"2017-04-21"]
[3713,"Lee Building",null,"999 Grove Street"]
[3714,"Transitional Care Hospital",null,null,null,"Maintain Type IIA per VUSBC 2003","?-VUSBC 2003-Type IIA",1]
[3730,"1003 West Main",540,"1003 West Main Street",null,"Maintain Ordinary per VFSR","1948-VFSR-Ordinary, (Renovated in 2013)",1]
[null,"Fontaine 545 Ray C Hunt Drive - see 1756",null,"545 Ray C. Hunt Dr ",null,"Maintain Type IIC per VUSBC 1993",null,1]
[3754,"Fontaine 515 Ray C Hunt Drive",null,"515 Ray C. Hunt Dr",null,"Maintain Type IIA per VUSBC 1993","1998-VUSBC 1993-Type IIA",1]
[3755,"Fontaine Medical Office Building 1",3,"415 Ray C. Hunt Dr ",null,"Maintain Type IIC per VUSBC 1996 w/ 2000 Amendments","2003-VUSBC 1996 w/ 2000 Amendments-Type IIC",1,3]
[3758,"Fontaine 560 Ray C Hunt Drive",3,"560 Ray C. Hunt Dr",null,"Maintain Type IIC per VUSBC 1996","Type IIC Noncombustible Unprotected",1]
[3759,"Fontaine 400 Ray C Hunt Drive",3,"400 Ray C. Hunt Dr",null,"Maintain Type IIC per VUSBC 1993",1995,1,3]
[3760,"Fontaine 500 Ray C Hunt Drive",3,"500 Ray C. Hunt Dr",null,"Maintain Type IIB per VUSBC 2012","1993-VUSBC 1990-Type IIC; Full Renov 2017-VUSBC 2012-Type IIB",1,4]
[3761,"Aurbach Medical Research Building",3,"450 Ray C Hunt Dr ",null,"Maintain Type IIC per VUSBC 1996","2002-VUSBC 1996-Type IIC",1,3]
[3768,"Shoppes at Clover Lawn West Building NO",3,"375 Four Leaf Ln ",null,"(TBD - see OUBO)"]
[3967,"Pegasus Medical Transport",3,"1205 Stoney Ridge Rd ",null,"(TBD - see OUBO)"]
[3991,"1018 West Main St",540,"1018 West Main St W",null,"(TBD - see OUBO)"]
[3992,"1107 West Main St",null,"1107 West Main St",null,"Maintain Ordinary per VFSR","1937-VFSR-Ordinary","100% (but not monitored off site)",1]
[3993,"1224 Jefferson Park Ave",540,"1224 Jefferson Park Ave ",null,"(TBD - see OUBO)"]
[4011,"Halsey Annex A",3,"160 Cabell Dr ",null,"(TBD - see OUBO)",null,0]
[4012,"Halsey Annex B",3,"160 Cabell Dr ",null,"(TBD - see OUBO)",null,0]
[4013,"Religious Studies Annex",3,"138 Amphitheater Way ",null,"(TBD - see OUBO)",null,0]
[4104,"Aviary",3,null,null,"Maintain Type IIB per VUSBC 2012","VUSBC 2012",0]
[5087,"Memorial Gymnasium",3,"210 Emmet St S",null,"Maintain Ordinary per VFRSR","1922-VFSR-presumed Ordinary",0,null,"X"]
[5088,"Lady Astor Pavilion",3,"208 Emmet St S",null,"Maintain Type IIIB per VUSBC 1996 w/ 2000 Amendments","Orig 1937-VFSR-Ordinary; Renov 2003-VUSBC 1996 w/ 2000 Amendments-Type IIIB",0,1]
[5097,"Nameless Field",3,"no address no no",null,"(TBD - see OUBO)"]
[5098,"Lady Astor Tennis Courts",3,"no address no no",null,"(TBD - see OUBO)"]
[5262,"Slaughter Recreation Center",3,"505 Edgemont Rd ",null,"Maintain Type IIC per VUSBC 1975","1979-VUSBC 1975 -Type IIC Noncombustible Unprotected","20% (2nd flr mech rm, T.O. stair and some of first floor)",null,"X"]
[5267,"Dell Tennis Courts",3,"no address no no",null,"(TBD - see OUBO)"]
[5268,"Dell Field",3,"no address no no",null,"(TBD - see OUBO)"]
[5269,"Dell Basketball Courts",3,"no address no no",null,"(TBD - see OUBO)"]
[5271,"Aquatic & Fitness Center",3,"450 Whitehead Rd ",null,"Maintain Type IB per VUSBC 1990","1997-VUSBC 1990-Type IB",1]
[5272,"Carl Smith Clock Tower",3," Whitehead Rd ",null,"(TBD - see OUBO)"]
[5280,"Bryant Hall at Scott Stadium",3,"1814 Stadium Rd ",null,"Maintain Type IB per VUSBC 1996","1930-VFSR-Noncombustible, 2001-VUSBC 1996-Type IB","100%??"]
[5300,"David A. Harrison III Field",3,"no address no no",null,"(TBD - see OUBO)"]
[5307,"Scott Stadium",3,"1815 Stadium Rd ",null,"Maintain Type IB per VUSBC 1996","1930-VFSR-Noncombustible, 2001-VUSBC 1996-Type IB","Partial",null,"X"]
[5320,"Scott Stadium Scoreboard",3,"no address no ",null,"(TBD - see OUBO)",null,null,null,"X"]
[5408,"Madison Bowl",540,"no address no no",null,"(TBD - see OUBO)"]
[5437,"Carr's Hill Field",3,"no address no no",null,"(TBD - see OUBO)"]
[5476,"Lambeth Field",3,"no address no no",null,"(TBD - see OUBO)"]
[5501,"Davenport Field",3,"434 Lannigan Ln ",null,"(TBD - see OUBO)"]
[5502,"Klockner Stadium",3,"407 Massie Rd ",null,"Maintain Type IIIB per VUSBC 1987","1991-VUSBC 1987-Type IIIB",0]
[5503,"Lannigan Track",3,"352 Lannigan Ln ",null,"(TBD - see OUBO)"]
[5504,"Upper Grass Practice Field",3,"no address no no",null,"(TBD - see OUBO)"]
[5506,"Baseball Stadium",3,"434 Lannigan Ln ",null,"Maintain Type IIB per VUSBC 2006","(Original?)/2010-VUSBC 2006-Type IIB"]
[5507,"Softball Stadium",3,"410 Copeley Rd",null,"TBD","TBD"]
[5512,"IMREC Compost Shed",3,"   ",null,"(TBD - see OUBO)"]
[5513,"IMREC Storage Shed",3,"   ",null,"(TBD - see OUBO)"]
[5532,"The Park - Indoor Field #7",540]
[5535,"The Park - Support Facility",540,"1015 Massie Rd ",null,"Maintain VB per VUSBC 1990 w/ 1993 Amendments","1995-VUSBC 1990 w/ 1993 Amendments-Type VB","Partial",1,"X"]
[5536,"The Park - Field #1",540,"1015 Massie Rd ",null,"(TBD - see OUBO)"]
[5537,"The Park - Field #2",540,"1015 Massie Rd ",null,"(TBD - see OUBO)"]
[5538,"The Park - Fields #3-5",540,"1015 Massie Rd ",null,"(TBD - see OUBO)"]
[5539,"The Park - Field #6",540,"1015 Massie Rd ",null,"(TBD - see OUBO)"]
[5561,"N Grounds Recreation Ctr",3,"510 Massie Rd ",null,"(TBD - see OUBO)","Orig ??, Addit 1994-Type IIC-VUSBC 1987",1,1]
[5562,"N Grounds Recreation Ctr Addition",3,"510 Massie Rd ",null,"Maintain Type IIB per VUSBC 2009","2012-VUSBC 2009-Type IIB",1,2]
[5574,"John Paul Jones Arena",3,"295 Massie Rd ",null,"Maintain Type IB per VUSBC 1996 w/ 2000 Amendments","2006-VUSBC 1996 w/ 2000 Amend-Type IB",1,null,"X"]
[5575,"Arena Parking Garage",3,"305 Massie Rd ",null,"Maintain Type IIC per VUSBC 1996 w/ 2000 Amendments","2006-VUSBC 1996 w/ 2000 Amend-Type IIC",0,4]
[5576,"University Hall",540,"300 Massie Rd ",null,"Maintain Semi-Fireproof per VFSR","1966-VFSR-Semi-Fireproof"]
[5577,"Frank C. McCue III Ctr",3,"290 Massie Rd ",null,"Maintain Type IIA per VUSBC 1987","1992-VUSBC 1987-Type IIA",1,3]
[5578,"Sports Medicine",540,"471 Copeley Rd ",null,"(TBD - see OUBO)",null,null,null,"X"]
[5586,"Perry Field",540,"no address no no",null,"(TBD - see OUBO)"]
[5587,"Lower Grass Practice Field",540,"no address no no",null,"(TBD - see OUBO)"]
[5588,"Artificial Turf Field",540,"no address no no",null,"(TBD - see OUBO)"]
[5589,"Football Practice Field #2",540,"no address no no",null,"(TBD - see OUBO)"]
[5590,"Football Practice Field #3",540,"no address no no",null,"(TBD - see OUBO)"]
[5591,"Indoor Practice Facility ",540,null,null,"Maintain Type IIB per VUSBC 2009","2012-VUSBC 2009-Type IIB",1]
[5592,"Onesty Hall",540,"475 Copeley Rd ",null,"(TBD - see OUBO)"]
[5593,"U Hall Cage",540,"479 Copeley Rd ",null,"(TBD - see OUBO)"]
[5848,"Copeley Field",3,"no address no no",null,"(TBD - see OUBO)"]
[6001,"The Lawn",3,"no address no no"]
[6002,"Pavilion Gardens",3,"no address no no"]
[6003,"University Cemetery",3,"no address no no"]
[6010,"Central Grounds",3,"no address no no"]
[6011,"Housing Central Grounds",3,"no address no no"]
[6070,"South Lawn Walkway",540,"no address no no"]
[6122,"Newcomb Hall Grounds",3,"no address no no"]
[6207,"Zehmer Grounds",3,"no address no no"]
[6209,"Observatory Dining Grounds",3,"no address no no"]
[6210,"McCormick Road Dormitories Grounds",3,"no address no no"]
[6228,"Facilities Management Grounds",3,"no address no no"]
[6229,"Alderman Substation 15KV Grounds",3,"no address no no"]
[6254,"NRAO Grounds",3,"no address no no"]
[6260,"Ruffner Pedestrian Bridge",3,"no address no no",null,"(TBD - see OUBO)"]
[6261,"Shelburne Hall Grounds",3,"no address no no"]
[6271,"Aquatics and Fitness Center Grounds",3,"no address no no",null,"(TBD - see OUBO)","1996-VUSBC 1993- "]
[6290,"Student Activities Building Grounds",3,"no address no no"]
[6300,"West Grounds",3,"no address no no"]
[6301,"West Grounds Woodlands",3,"no address no no"]
[6302,"State Route 302",3,"no address no no"]
[6303,"West Grounds Housing",3,"no address no no",null,"(TBD - see OUBO)"]
[6304,"Permit Parking Lots",3,"no address no no"]
[6310,"E & G Roads (non St. Rt. 302)",3,"no address no no"]
[6360,"Alderman Road Dormitories Grounds",3,"no address no no"]
[6396,"Runk Dining Grounds",540,"no address no no"]
[6400,"Carr's Hill Grounds",3,"no address no no"]
[6420,"Booker House Grounds",540,"no address no no"]
[6424,"Fraternity Grounds",3,"no address no no"]
[6428,"Morea Grounds",540,"no address no no"]
[6430,"Sprigg Lane House Grounds",null,"   "]
[6432,"Alumni Hall Grounds (NO)",540,"no address no no"]
[6442,"Arts & Emmet Grounds",3,"no address no no"]
[6466,"RWSA Water Treatment Plant Grounds",3,"no address no no"]
[6497,"Grounds Walk",3,"no address no no"]
[6498,"Goodwin Bridge",3,"no address no no",null,"(TBD - see OUBO)"]
[6499,"North Grounds",540,"no address no no"]
[6500,"North Grounds Woodlands",3,"no address no no"]
[6501,"North Grounds Housing",3,"no address no no",null,"(TBD - see OUBO)"]
[6503,"North Grounds Connector",540,"no address no no",null,"(TBD - see OUBO)"]
[6526,"Law School Grounds",3,"no address no no"]
[6532,"JAG Grounds (per lease extents)",540,"no address no no"]
[6540,"The Park (Superfield) Grounds",540,"no address no no"]
[6541,"North Grounds Utilities Grounds",3,"no address no no"]
[6551,"Darden Grounds",3,"no address no no"]
[6561,"North Grounds Rec. Grounds",3,"no address no no",null,null,"?, 2013 Type IIB"]
[6576,"University Hall Grounds",3,"no address no no"]
[6580,"Carruthers/Michie Grounds",540,"no address no no"]
[6582,"Parking and Transportation Grounds",540,"no address no no"]
[6595,"Fontana/Printing Services Grounds",3,"no address no no"]
[6600,"KCRC Grounds",3,"no address no no"]
[6601,"Klockner Stadium Grounds",3,"no address no no"]
[6603,"Miller Center Grounds",3,"no address no no"]
[6610,"ECC Grounds",3,"no address no no"]
[6616,"Sunnyside Grounds",540,"no address no no"]
[6631,"Birdwood E&G Grounds",3,"no address no no"]
[6637,"Birdwood Housing Grounds",3,"no address no no"]
[6700,"Fan Mountain Grounds",3,"no address no no"]
[6712,"Oyster Grounds",131,"no address no no"]
[6717,"Mountain Lake Grounds",71,"no address no no"]
[6800,"Child Care Grounds",3,"no address no no"]
[6900,"Health System Grounds",540,"no address no no"]
[7100,"Coal Unloading Facility",3,"1309 Lee St ",null,"(TBD - see OUBO)",null,0]
[7101,"Coal Silos (4)",3,"1321 Lee St ",null,"(TBD - see OUBO)",null,0]
[7102,"Heating Plant Storage Building",3,"1323 Lee St",null,"Maintain Type IIIB per VUSBC 2009","2014-VUSBC 2009-Type IIIB",0]
[7103,"Heating Plant",3,"1321 Lee St ",null,"Maintain Noncombustible per VFSR","1950/1957-VFSR-Noncombustible",0,3]
[7104,"North Chiller Plant",3,"1315 Lee St ",null,"Maintin Type IIA per VUSBC 1981","1988-VUSBC 1981-Type IIA, Non-combustible unprotected",0]
[7140,"Cavalier Substation",540,"124 11th St SW",null,"Maintain Type IIC per VUSBC 1981 (1st Amendment)","1989-VUSBC 1981 (1st Amendment)-Type IIC",0,1,"X"]
[7147,"Telephone Exchange",3,"1409 Jefferson Park Ave ",null,"Maintain Type IIIC per VUSBC 1981","1972-VFSR-Noncombustible; Renov 1984-VUSBC 1981-Type IIIC",null,1]
[7185,"South Chiller Plant",540,"341 Crispell Dr ",null,"(TBD - see OUBO)",null,0,"1 w/ mezzanine"]
[7186,"East Chiller Plant",540,"   ",null,"Maintain IIB per VUSBC 2006","Orig 2010-VUSBC 2003-Type IIB; Addit 2013-VUSBC 2006-Type IIB",1]
[7199,"Newcomb Road Chiller Plant",3,"310 Emmet St",null,"Maintain IIB per VUSBC 2009","2016-VUSBC 2009-Type IIB",1]
[7240,"Tunnel System",null,"   ",null,"(TBD - see OUBO)"]
[7241,"Main Plant Steam Distribution System",null,"   "]
[7242,"Main Plant MTHW Distribution System",null,"   "]
[7243,"North Grounds Plant MTHW Distribution System",null,"   "]
[7244,"Runk Plant LTHW Distribution System",null,"   "]
[7245,"Domestic Water Distribution System",null,"   "]
[7246,"Sanitary Sewer System",null,"   "]
[7258,"Alderman Substation 15KV",3,"575 Alderman Rd ",null,"Maintain Type IIC per VUSBC 1987","1989-VUSBC 1987-Type IIC"]
[7260,"North Grounds Electrical Distribution System",null,"   "]
[7261,"West End Electrical Distribution System",null,"   "]
[7262,"Cavalier Electrical Distribution System",null,"   "]
[7263,"North Grounds Chilled Water Loop",null,"   "]
[7264,"McCormick Road Chilled Water Loop",null,"   "]
[7265,"Newcomb Road Chilled Water Loop",null,"   "]
[7266,"Hereford Chilled Water Loop",null,"   "]
[7267,"Central Grounds Chilled Water Loop",null,"   "]
[7268,"Health System Chilled Water Loop",null,"   "]
[7269,"Carr’s Hill Chilled Water Loop",null,"   "]
[7270,"Massie Road Chilled Water Loop",null,"   "]
[7272,"Alderman Substation 5KV",3,"575 Alderman Rd ",null,"(TBD - see OUBO)",null,0]
[7273,"Alderman Road Pumping Station",3,"550 Alderman Rd ",null,"(TBD - see OUBO)",null,0]
[7357,"Dunglison Transformer",3,"771 Alderman Rd ",null,"(TBD - see OUBO)",null,0]
[7358,"North Observatory Hill Water Tank",3,"no adderess no ",null,"(TBD - see OUBO)"]
[7359,"Equip Enclosure #1",3,"no address  ",null,"(TBD - see OUBO)",null,0]
[7368,"West Water Tank",3,"585 McCormick Rd ",null,"(TBD - see OUBO)"]
[7369,"East Water Tank",3,"585 McCormick Rd ",null,"(TBD - see OUBO)"]
[7375,"Balz House Pump House",3,"92 Bice Dr ",null,"(TBD - see OUBO)",null,0]
[7500,"Copeley Substation",3,"550 Seymour Rd ",null,"(TBD - see OUBO)",null,0]
[7516,"Copeley Apt  2 Transformer",3,"no address  ",null,null,null,0]
[7517,"Copeley Apt  3 Transformer",3,"no address  ",null,null,null,0]
[7518,"Copeley Apt  7 Transformer",3,"no address  ",null,null,null,0]
[7519,"Copeley Apt 10 Transformer",3,"no address  ",null,null,null,0]
[7520,"Copeley Apt 12 Transformer",3,"no address  ",null,null,null,0]
[7521,"Copeley Apt 16 Transformer",3,"no address  ",null,null,null,0]
[7522,"Copeley Apt 19 Transformer",3,"no address  ",null,null,null,0]
[7523,"Copeley Apt 21 Transformer",3,"no address  ",null,null,null,0]
[7524,"Copeley Apt 23 Transformer",3,"no address  ",null,null,null,0]
[7525,"Copeley Apt 27 Transformer",3,"no address  ",null,null,null,0]
[7526,"Copeley Apt  9 Transformer",3,"no address  ",null,null,null,0]
[7533,"N Grounds Mech Plant",3,"691 Nash Dr ",null,"Maintain IIB per VUSBC 2009","Orig 1978-Type IIA; Addit 2014-Type IIB-VUSBC 2009",0]
[7540,"N Grounds Substation",3,"695 Nash Dr ",null,"Maintain Type IIC per VUSBC 1990","1993-VUSBC 1990-Type IIC"]
[7541,"Copeley Mech. Plant Pumping Station (North Grounds Pump House)",3,"695 Nash Dr ",null,"Maintain Type IIC per VUSBC 1996","1998-VUSBC 1996-Type IIC Noncombustible Unprotected",0]
[7575,"Massie Road Plant @ Arena Parking Garage",3,"305 Massie Road ",null,"Maintain Type IIB per VUSBC 1996 w 2000 Amendments","2003-VUSBC 1996 w/ 2000 Amendments -Type IIB",1]
[7710,"Meadow Creek Stormwater System",null,"   "]
[7720,"Moore's Creek Stormwater System",null,"   "]
[7879,"Central Grounds CW Plant @ Clark Hall",3,"   ",null,"(TBD - see OUBO)"]
[7880,"Central Grounds CW Plant @ Bryan Hall",null,"   ",null,"Maintain Type IIB per VUSBC 1996","Orig ??; Addit 2004-VUSBC 1996-Type IIB",0]
[7881,"Carr's Hill CW Plant @ Campbell Hall",null,"   ",null,"(TBD - see OUBO)"]
[7884,"McCormick Rd CW Plant @ Chemistry Bldg",null,"   ",null,"(TBD - see OUBO)"]
[7885,"McCormick Rd CW Plant @ AFC",null,"   ",null,"(TBD - see OUBO)"]
[7886,"Randall Hall CW Plant @ Randall Hall",null,"   ",null,"(TBD - see OUBO)"]
[7890,"Newcomb Rd CW Plant @ Clemons Library",null,"   ",null,"(TBD - see OUBO)"]
[7891,"Newcomb Rd CW Plant @ Newcomb Hall",null,"   "]
[7892,"Newcomb Rd CW Plant @ Alderman Library",null,"   "]
[7898,"Hereford College Substation @ Runk Hall",null,"   ",null,"(TBD - see OUBO)"]
[7899,"Hereford College CW Plant @ Runk Hall",null,"   ",null,"(TBD - see OUBO)"]
[7900,"Utilities Mobile Chiller Plant",0," None  ",null,"(TBD - see OUBO)"]
[8010,"Oyster Lab (Anheuser-Busch Coastal Research Center)",131,"21025 Seaside RD ",null,"(TBD - see OUBO)",null,0,null,"X"]
[8011,"Oyster Residence (Anheuser-Busch Coastal Research Center)",131,"21025 Seaside RD ",null,"(TBD - see OUBO)",null,0]
[8050,"Blandy The Quarters",43,"   ",null,"(TBD - see OUBO)",null,0]
[8051,"Blandy Tenant Farmhouse",43,"   ",null,"(TBD - see OUBO)",null,0]
[8052,"Blandy Tractor Barn Complex",43,"   ",null,"(TBD - see OUBO)",null,0]
[8054,"Blandy Parkfield Learning Center",43,"   ",null,"(TBD - see OUBO)",null,0]
[8057,"Blandy Hay Barn/Cattle Shade Barn/Corn Crib",43,"   ",null,"(TBD - see OUBO)",null,0]
[8058,"Blandy Silo #1",43,"   ",null,"(TBD - see OUBO)",null,0]
[8059,"Blandy Silo #2",43,"   ",null,"(TBD - see OUBO)",null,0]
[8060,"Blandy Farm House",43,"   ",null,"(TBD - see OUBO)",null,0]
[8061,"Blandy Workshop",43,"   ",null,"(TBD - see OUBO)",null,0]
[8062,"Blandy Stone Cottage",43,"   ",null,"(TBD - see OUBO)",null,0]
[8063,"Blandy Grounds Maintenance Shop/Old Propogation Greenhouse",43,"   ",null,"(TBD - see OUBO)",null,0]
[8064,"Blandy Research Greenhouse",43,"   ",null,"Farm Bldg, exempt per VUSBC 2012 102.3 Exemption 6",null,0]
[8065,"Blandy Genetics Building",43,"   ",null,"(TBD - see OUBO)",null,0]
[8066,"Blandy Hewlett Lewis Overlook Pavilion",43,"   ",null,"(TBD - see OUBO)",null,0]
[8067,"Blandy Peetwood Pavilion",43,"   ",null,"(TBD - see OUBO)",null,0]
[8068,"Blandy New Trailer Lab",43,"   ",null,"(TBD - see OUBO)",null,0]
[8069,"Blandy New Propagation Greenhouse",43,"   ",null,"(TBD - see OUBO)",null,0]
[8070,"Blandy Information Kiosk",43,"   ",null,"(TBD - see OUBO)",null,0]
[8071,"Blandy Research Village Cottage 1 (RV1)",43,"   ",null,"Maintain VB per VUSBC 2012",null,0]
[8072,"Blandy Research Village Cottage 2 (RV2)",43,"   ",null,"Maintain VB per VUSBC 2012",null,0]
[8073,"Blandy Amphitheater",null,"   "]
[8074,"Blandy Event Field",null,"   "]
[8075,"Blandy Field Lab",43,"   ",null,"(TBD - see OUBO)",null,0]
[8111,"UVACW-Zehmer Hall",195," Cavalier Driv ",null,"(TBD - see OUBO)"]
[8112,"UVACW-Darden Hall",195," Cavalier Driv ",null,"(TBD - see OUBO)"]
[8113,"UVACW-Science Building",195," Cavalier Driv ",null,"(TBD - see OUBO)"]
[8114,"UVACW-Gilliam Center for the Arts",195," Lakeside Driv ",null,"(TBD - see OUBO)"]
[8116,"UVACW-Science Building Lab Addition",195," Highland Way ",null,"(TBD - see OUBO)"]
[8117,"UVACW-Fred B. Greear Gymnasium",195," Greear Cir ",null,"(TBD - see OUBO)"]
[8136,"UVACW-Thompson Hall",195," Asbury-Thompson Driv ",null,"(TBD - see OUBO)"]
[8211,"UVACW-John Cooke Wyllie Library",195," Cavalier Driv ",null,"Maintain IIC per VUSBC 1993","Orig 1966-VFSR-Noncombustible; Addit 1996-VUSBC 1993-Type IIC Unprotected; Renov 2020-VUSBC 2015-Type IIB",1,3]
[8212,"UVACW-Green House",195," Darden Driv ",null,"(TBD - see OUBO)"]
[8213,"UVACW-Cantrell Hall",195," Thomas Jefferson Driv ",null,"Maintain IIC per VUSBC 1978","-VUSBC 1978-Type IIC",1]
[8214,"UVACW-Chapel of All Faiths",195," Thomas Jefferson Driv ",null,"(TBD - see OUBO)"]
[8216,"UVACW-Smiddy Hall",195," Smiddy Driv ",null,"(TBD - see OUBO)"]
[8217,"UVACW-Swimming Pool",195," Cavalier Driv ",null,"Maintain Ordinary per VFSR","1972-VFSR-Ordinary"]
[8218,"UVACW-Log Cabin",195," Rhododendron Lane ",null,"(TBD - see OUBO)"]
[8219,"UVACW-Maintenance Building",195," Highland Way ",null,"(TBD - see OUBO)"]
[8223,"UVACW-Construction Trailer",195," Twin Leaf Way ",null,"(TBD - see OUBO)"]
[8224,"UVACW-SEED Center",195," Darden Driv ",null,"(TBD - see OUBO)"]
[8225,"UVACW-Bowers-Sturgill Hall",195," Smiddy Driv ",null,"(TBD - see OUBO)"]
[8226,"UVACW-Multipurpose Arena",195,"   ",null,"(TBD - see OUBO)"]
[8227,"UVACW-Observatory",195,"   ",null,"(TBD - see OUBO)"]
[8229,"UVACW-Library",195,null,null,"Maintain Type IB per VUSBC 2009","2016-VUSBC 2009-Type IB",1]
[8240,"UVACW-C. Bascom Slemp Student Center",195," Thomas Jefferson Driv ",null,"Maintain Type IIA per VUSBC 2009","Orig 2003-VUSBC 1996-Type IIB; Addit 2015-VUSBC 2009-Type IIA",1]
[8241,"UVACW-Carl Smith Stadium Seating/Fieldho",195," Stadium Driv ",null,"(TBD - see OUBO)"]
[8242,"UVACW-Football Pressbox",195," Stadium Driv ",null,"(TBD - see OUBO)"]
[8243,"UVACW-Baseball Field Pressbox",195," Greear Cir ",null,"(TBD - see OUBO)"]
[8244,"UVACW-Softball Field Pressbox",195," Greear Cir ",null,"(TBD - see OUBO)"]
[8274,"UVACW-Resource Center",195,"9204 Darden Driv ",null,"(TBD - see OUBO)"]
[8275,"UVACW-New Maintenance",195," Darden Driv ",null,"(TBD - see OUBO)"]
[8276,"UVACW-Central Storage",195," Darden Driv ",null,"(TBD - see OUBO)"]
[8277,"UVACW-Shed",195," Darden Driv ",null,"(TBD - see OUBO)"]
[8278,"UVACW-Office Trailer",195,"   ",null,"(TBD - see OUBO)"]
[8279,"UVACW-Science Lab Temp 1",195,"   ",null,"(TBD - see OUBO)"]
[8280,"UVACW-Science Lab Temp2",195,"   ",null,"(TBD - see OUBO)"]
[8281,"UVACW-Drama Temp 1",195,"   ",null,"(TBD - see OUBO)"]
[8282,"UVACW-Drama Temp 2",195,"   ",null,"(TBD - see OUBO)"]
[8313,"UVACW-Emma McCraray Hall A",195," Clinch Valley Driv ",null,"(TBD - see OUBO)"]
[8314,"UVACW-Emma McCraray Hall B",195," Clinch Valley Driv ",null,"(TBD - see OUBO)"]
[8333,"UVACW-Asbury Hall",195," Asbury-Thompson Driv ",null,"(TBD - see OUBO)"]
[8337,"UVACW-Townhouse Apts",195," Darden Driv ",null,"(TBD - see OUBO)"]
[8338,"UVACW-Henson Hall",195," Asbury-Thompson Driv ",null,"(TBD - see OUBO)"]
[8340,"UVACW-Martha Randolph Hall",195," Asbury-Thompson Driv ",null,"(TBD - see OUBO)"]
[8341,"UVACW-Crockett Hall",195," Clinch Valley Driv ",null,"(TBD - see OUBO)"]
[8350,"UVACW-Faculty Apartment Building",195," Clinch Valley Driv ",null,"(TBD - see OUBO)"]
[8375,"UVACW-Faculty House E",195," Clinch Valley Driv ",null,"(TBD - see OUBO)"]
[8376,"UVACW-Faculty House F",195," Clinch Valley Driv ",null,"(TBD - see OUBO)"]
[8377,"UVACW-Lila Vicars Smith House (Chancellor's Residence)",195," Clinch Valley Driv ",null,"(TBD - see OUBO)",null,null,null,"X"]
[8378,"UVACW-Culbertson Hall",195,"   ",null,"(TBD - see OUBO)"]
[8379,"UVACW-Cav's Student",195,"   ",null,"(TBD - see OUBO)"]
[8380,"UVACW-Humphrey's Tennis Complex",195,"   ",null,"(TBD - see OUBO)"]
[8381,"UVACW-Smith Dining Hall",195,"   ",null,"(TBD - see OUBO)"]
[8382,"UVACW-Commonwealth Hall",195,"   ",null,"(TBD - see OUBO)"]
[null,"UVACW-Heath & Wellness Center",195,null,null,"Maintain Type IIA per VUSBC 2009","2015-VUSBC 2009-Type IIA",1]
[8844,"Northern Virginia Graduate Center",610,"7054 Haycock Road ",null,"(TBD - see OUBO)",null,1]
[8997,"Orange Medical Office Building",137,"661 University Ln ",null,"(TBD - see OUBO)"]
[9705,"ML Sewage Plant",71,"   ",null,"(TBD - see OUBO)",null,0]
[9706,"ML-Washington Cottage",71,"   ",null,"(TBD - see OUBO)",null,0]
[9707,"ML-Shop (Laundry Dorm)",71,"   ",null,"(TBD - see OUBO)",null,0]
[9708,"ML-Bannister Cottage",71,"   ",null,"(TBD - see OUBO)",null,0]
[9709,"ML-Leconte Cottage",71,"   ",null,"(TBD - see OUBO)",null,0]
[9710,"ML-Clayton Cottage",71,"   ",null,"(TBD - see OUBO)",null,0]
[9711,"ML-Hariot Cottage",71,"   ",null,"(TBD - see OUBO)",null,0]
[9712,"ML-Catesby Cottage",71,"   ",null,"(TBD - see OUBO)",null,0]
[9713,"ML-Storage Building",71,"   ",null,"(TBD - see OUBO)"]
[9714,"ML-Jefferson Hall",71,"   ",null,"(TBD - see OUBO)",null,0]
[9715,"ML-Elliott Cottage",71,"   ",null,"(TBD - see OUBO)",null,0]
[9716,"ML-Chapman Cottage",71,"   ",null,"(TBD - see OUBO)",null,0]
[9717,"ML-Lewis Hall Lab",71,"   ",null,"(TBD - see OUBO)",null,0]
[9718,"ML-Caretaker's House",71,"   ",null,"(TBD - see OUBO)",null,0]
[9719,"ML-Laing Hall",71,"   ",null,"(TBD - see OUBO)",null,0]
[9720,"ML-Audubon Cottage",71,"   ",null,"(TBD - see OUBO)",null,0]
[9721,"ML-Deschweinitz Cottage",71,"   ",null,"(TBD - see OUBO)",null,0]
[9723,"ML-Michaux Cottage",71,"   ",null,"(TBD - see OUBO)",null,0]
[9724,"ML-Reed Cottage",71,"   ",null,"(TBD - see OUBO)",null,0]
[9725,"ML-Hentz Mohr Cottage",71,"   ",null,"(TBD - see OUBO)",null,0]
[9726,"ML-Gattinger Cottage",71,"   ",null,"(TBD - see OUBO)",null,0]
[9727,"ML-Schoew Cottage",71,"   ",null,"(TBD - see OUBO)",null,0]
[9728,"ML-Maphis Cottage",71,"   ",null,"(TBD - see OUBO)",null,0]
[9729,"ML-Mitchell Cottage",71,"   ",null,"(TBD - see OUBO)",null,0]
[9730,"560 ray c. hunt",71,"   ",null,"(see Bldg #3758)",null,1]
[9731,"ML-Burns Cottage",71,"   ",null,"(TBD - see OUBO)",null,0]
[9732,"ML-Rafinesque Lab",71,"   ",null,"(TBD - see OUBO)",null,0]
[9733,"ML-Walton Pavilion",71,"   ",null,"(TBD - see OUBO)",null,0]
[9734,"ML-Guest House",71,"   ",null,"(TBD - see OUBO)",null,0]
[9735,"ML-Aquatics Lab",71,"   ",null,"(TBD - see OUBO)",null,0]
[9736,"ML-Water Treatment",71,"   ",null,"(TBD - see OUBO)",null,0]
[9737,"ML-Directors Cabin",71,"   ",null,"(TBD - see OUBO)"]
[9738,"ML-Service Storage Building",71,"   ",null,"(TBD - see OUBO)"]
[9844,"Southwest Virginia Higher Education Center",null,null,null,"Original or Addition? See OUBO","Orig 1999-VUSBC 1990-Type IIB; Addit 2010-VUSBC 2003-Type IIA",1]
[9975,"Middlebrook Medical Office NO",15,"36 Cherry Grove Rd ",null,"(TBD - see OUBO)"]
[9985,"Altavista Office Park NO",31,"701 5th St ",null,"(TBD - see OUBO)"]
[9990,"Augusta Medical Center  NO",15,"70 Medical Center Cr ",null,"(TBD - see OUBO)"]
[9971,"Spring Creek Medical Center",109,"1015 Spring Creek Parkway, Zion Crossroads",null,"Maintain Type IIB per VUSBC 2006","2014-VUSBC 2006-Type IIB",1]
[9991,"Fan Mtn. Norfolk State Observatory",null,"   ",null,"(TBD - see OUBO)"]
[9993,"Rosser Avenue Building",15,"201 Rosser Ave ",null,"(TBD - see OUBO)"]
[9999,"Unknow",null,null,null,"(TBD - see OUBO)"]